Workbook

Sheet Company Master
A2: Form 16 part B and Form 12BA Printing Utility.
B6: Employer Details
B7: Name of the employeer: | C7: Excelhub.org
B8: Address of employer: | C8: No. 1, New address
C9: New road,
C10: New town- 560001
B11: TDS Assessment Range of the employer: | C11: BLR, 17 D
B12: TAN: | C12: BBBBB1234G
B13: Financial Year: | C13: 2016-17
B14: Assessment Year: | C14: 2017-18
B16: Signatory Details
B17: Name: | C17: My Name
B18: Father Name: | C18: Father Name
B19: Designation: | C19: Director
B20: Place: | C20: Bangalore
B21: Date: | C21: 2017-05-30

Sheet Data Sheet for 12BA (hidden)
A1: Details for Form 12BA
A2: SL No: | B2: Emp No. | C2: Name | D2: PAN | E2: Income under the head “Salaries” | F2: Accommodation | G2: Cars/Other automotive | H2: Sweeper, gardener, watchman or personal attendant | I2: Gas, electricity, water | J2: Interest free or concessional loans | K2: Holiday expenses | L2: Free or concessional travel | M2: Free meals | N2: Free education | O2: Gifts, vouchers, etc. | P2: Credit card expenses | Q2: Club expenses | R2: Use of movable assets by employees | S2: Transfer of assets to employees | T2: Value of any other benefit / amenity / service / privilege | U2: Stock options ( non-qualified options) | V2: Other benefits or amenities | W2: Total value of perquisites | X2: Total value of Profits in lieu of salary as per section 17(3)
A4: 1 | B4: =IF('Data Sheet for Part B'!B487="","",'Data Sheet for Part B'!B487) ->  | C4: =IF('Data Sheet for Part B'!C487="","",'Data Sheet for Part B'!C487) ->  | D4: =IF('Data Sheet for Part B'!D487="","",'Data Sheet for Part B'!D487) -> 
A5: 2 | B5: =IF('Data Sheet for Part B'!B488="","",'Data Sheet for Part B'!B488) ->  | C5: =IF('Data Sheet for Part B'!C488="","",'Data Sheet for Part B'!C488) ->  | D5: =IF('Data Sheet for Part B'!D488="","",'Data Sheet for Part B'!D488) -> 
A6: 3 | B6: =IF('Data Sheet for Part B'!B489="","",'Data Sheet for Part B'!B489) ->  | C6: =IF('Data Sheet for Part B'!C489="","",'Data Sheet for Part B'!C489) ->  | D6: =IF('Data Sheet for Part B'!D489="","",'Data Sheet for Part B'!D489) -> 
A7: 4 | B7: =IF('Data Sheet for Part B'!B490="","",'Data Sheet for Part B'!B490) ->  | C7: =IF('Data Sheet for Part B'!C490="","",'Data Sheet for Part B'!C490) ->  | D7: =IF('Data Sheet for Part B'!D490="","",'Data Sheet for Part B'!D490) -> 
A8: 5 | B8: =IF('Data Sheet for Part B'!B491="","",'Data Sheet for Part B'!B491) ->  | C8: =IF('Data Sheet for Part B'!C491="","",'Data Sheet for Part B'!C491) ->  | D8: =IF('Data Sheet for Part B'!D491="","",'Data Sheet for Part B'!D491) -> 
A9: 6 | B9: =IF('Data Sheet for Part B'!B492="","",'Data Sheet for Part B'!B492) ->  | C9: =IF('Data Sheet for Part B'!C492="","",'Data Sheet for Part B'!C492) ->  | D9: =IF('Data Sheet for Part B'!D492="","",'Data Sheet for Part B'!D492) -> 
A10: 7 | B10: =IF('Data Sheet for Part B'!B493="","",'Data Sheet for Part B'!B493) ->  | C10: =IF('Data Sheet for Part B'!C493="","",'Data Sheet for Part B'!C493) ->  | D10: =IF('Data Sheet for Part B'!D493="","",'Data Sheet for Part B'!D493) -> 
A11: 8 | B11: =IF('Data Sheet for Part B'!B494="","",'Data Sheet for Part B'!B494) ->  | C11: =IF('Data Sheet for Part B'!C494="","",'Data Sheet for Part B'!C494) ->  | D11: =IF('Data Sheet for Part B'!D494="","",'Data Sheet for Part B'!D494) -> 
A12: 9 | B12: =IF('Data Sheet for Part B'!B495="","",'Data Sheet for Part B'!B495) ->  | C12: =IF('Data Sheet for Part B'!C495="","",'Data Sheet for Part B'!C495) ->  | D12: =IF('Data Sheet for Part B'!D495="","",'Data Sheet for Part B'!D495) -> 
A13: 10 | B13: =IF('Data Sheet for Part B'!B496="","",'Data Sheet for Part B'!B496) ->  | C13: =IF('Data Sheet for Part B'!C496="","",'Data Sheet for Part B'!C496) ->  | D13: =IF('Data Sheet for Part B'!D496="","",'Data Sheet for Part B'!D496) -> 
A14: 11 | B14: =IF('Data Sheet for Part B'!B497="","",'Data Sheet for Part B'!B497) ->  | C14: =IF('Data Sheet for Part B'!C497="","",'Data Sheet for Part B'!C497) ->  | D14: =IF('Data Sheet for Part B'!D497="","",'Data Sheet for Part B'!D497) -> 
A15: 12 | B15: =IF('Data Sheet for Part B'!B498="","",'Data Sheet for Part B'!B498) ->  | C15: =IF('Data Sheet for Part B'!C498="","",'Data Sheet for Part B'!C498) ->  | D15: =IF('Data Sheet for Part B'!D498="","",'Data Sheet for Part B'!D498) -> 
A16: 13 | B16: =IF('Data Sheet for Part B'!B499="","",'Data Sheet for Part B'!B499) ->  | C16: =IF('Data Sheet for Part B'!C499="","",'Data Sheet for Part B'!C499) ->  | D16: =IF('Data Sheet for Part B'!D499="","",'Data Sheet for Part B'!D499) -> 
A17: 14 | B17: =IF('Data Sheet for Part B'!B500="","",'Data Sheet for Part B'!B500) ->  | C17: =IF('Data Sheet for Part B'!C500="","",'Data Sheet for Part B'!C500) ->  | D17: =IF('Data Sheet for Part B'!D500="","",'Data Sheet for Part B'!D500) -> 
A18: 15 | B18: =IF('Data Sheet for Part B'!B501="","",'Data Sheet for Part B'!B501) ->  | C18: =IF('Data Sheet for Part B'!C501="","",'Data Sheet for Part B'!C501) ->  | D18: =IF('Data Sheet for Part B'!D501="","",'Data Sheet for Part B'!D501) -> 
A19: 16 | B19: =IF('Data Sheet for Part B'!B502="","",'Data Sheet for Part B'!B502) ->  | C19: =IF('Data Sheet for Part B'!C502="","",'Data Sheet for Part B'!C502) ->  | D19: =IF('Data Sheet for Part B'!D502="","",'Data Sheet for Part B'!D502) -> 
A20: 17 | B20: =IF('Data Sheet for Part B'!B503="","",'Data Sheet for Part B'!B503) ->  | C20: =IF('Data Sheet for Part B'!C503="","",'Data Sheet for Part B'!C503) ->  | D20: =IF('Data Sheet for Part B'!D503="","",'Data Sheet for Part B'!D503) -> 
A21: 18 | B21: =IF('Data Sheet for Part B'!B504="","",'Data Sheet for Part B'!B504) ->  | C21: =IF('Data Sheet for Part B'!C504="","",'Data Sheet for Part B'!C504) ->  | D21: =IF('Data Sheet for Part B'!D504="","",'Data Sheet for Part B'!D504) -> 
A22: 19 | B22: =IF('Data Sheet for Part B'!B505="","",'Data Sheet for Part B'!B505) ->  | C22: =IF('Data Sheet for Part B'!C505="","",'Data Sheet for Part B'!C505) ->  | D22: =IF('Data Sheet for Part B'!D505="","",'Data Sheet for Part B'!D505) -> 
A23: 20 | B23: =IF('Data Sheet for Part B'!B506="","",'Data Sheet for Part B'!B506) ->  | C23: =IF('Data Sheet for Part B'!C506="","",'Data Sheet for Part B'!C506) ->  | D23: =IF('Data Sheet for Part B'!D506="","",'Data Sheet for Part B'!D506) -> 
A24: 21 | B24: =IF('Data Sheet for Part B'!B507="","",'Data Sheet for Part B'!B507) ->  | C24: =IF('Data Sheet for Part B'!C507="","",'Data Sheet for Part B'!C507) ->  | D24: =IF('Data Sheet for Part B'!D507="","",'Data Sheet for Part B'!D507) -> 
A25: 22 | B25: =IF('Data Sheet for Part B'!B508="","",'Data Sheet for Part B'!B508) ->  | C25: =IF('Data Sheet for Part B'!C508="","",'Data Sheet for Part B'!C508) ->  | D25: =IF('Data Sheet for Part B'!D508="","",'Data Sheet for Part B'!D508) -> 
A26: 23 | B26: =IF('Data Sheet for Part B'!B509="","",'Data Sheet for Part B'!B509) ->  | C26: =IF('Data Sheet for Part B'!C509="","",'Data Sheet for Part B'!C509) ->  | D26: =IF('Data Sheet for Part B'!D509="","",'Data Sheet for Part B'!D509) -> 
A27: 24 | B27: =IF('Data Sheet for Part B'!B510="","",'Data Sheet for Part B'!B510) ->  | C27: =IF('Data Sheet for Part B'!C510="","",'Data Sheet for Part B'!C510) ->  | D27: =IF('Data Sheet for Part B'!D510="","",'Data Sheet for Part B'!D510) -> 
A28: 25 | B28: =IF('Data Sheet for Part B'!B511="","",'Data Sheet for Part B'!B511) ->  | C28: =IF('Data Sheet for Part B'!C511="","",'Data Sheet for Part B'!C511) ->  | D28: =IF('Data Sheet for Part B'!D511="","",'Data Sheet for Part B'!D511) -> 
A29: 26 | B29: =IF('Data Sheet for Part B'!B512="","",'Data Sheet for Part B'!B512) ->  | C29: =IF('Data Sheet for Part B'!C512="","",'Data Sheet for Part B'!C512) ->  | D29: =IF('Data Sheet for Part B'!D512="","",'Data Sheet for Part B'!D512) -> 
A30: 27 | B30: =IF('Data Sheet for Part B'!B513="","",'Data Sheet for Part B'!B513) ->  | C30: =IF('Data Sheet for Part B'!C513="","",'Data Sheet for Part B'!C513) ->  | D30: =IF('Data Sheet for Part B'!D513="","",'Data Sheet for Part B'!D513) -> 
A31: 28 | B31: =IF('Data Sheet for Part B'!B514="","",'Data Sheet for Part B'!B514) ->  | C31: =IF('Data Sheet for Part B'!C514="","",'Data Sheet for Part B'!C514) ->  | D31: =IF('Data Sheet for Part B'!D514="","",'Data Sheet for Part B'!D514) -> 
A32: 29 | B32: =IF('Data Sheet for Part B'!B515="","",'Data Sheet for Part B'!B515) ->  | C32: =IF('Data Sheet for Part B'!C515="","",'Data Sheet for Part B'!C515) ->  | D32: =IF('Data Sheet for Part B'!D515="","",'Data Sheet for Part B'!D515) -> 
A33: 30 | B33: =IF('Data Sheet for Part B'!B516="","",'Data Sheet for Part B'!B516) ->  | C33: =IF('Data Sheet for Part B'!C516="","",'Data Sheet for Part B'!C516) ->  | D33: =IF('Data Sheet for Part B'!D516="","",'Data Sheet for Part B'!D516) -> 
A34: 31 | B34: =IF('Data Sheet for Part B'!B517="","",'Data Sheet for Part B'!B517) ->  | C34: =IF('Data Sheet for Part B'!C517="","",'Data Sheet for Part B'!C517) ->  | D34: =IF('Data Sheet for Part B'!D517="","",'Data Sheet for Part B'!D517) -> 
A35: 32 | B35: =IF('Data Sheet for Part B'!B518="","",'Data Sheet for Part B'!B518) ->  | C35: =IF('Data Sheet for Part B'!C518="","",'Data Sheet for Part B'!C518) ->  | D35: =IF('Data Sheet for Part B'!D518="","",'Data Sheet for Part B'!D518) -> 
A36: 33 | B36: =IF('Data Sheet for Part B'!B519="","",'Data Sheet for Part B'!B519) ->  | C36: =IF('Data Sheet for Part B'!C519="","",'Data Sheet for Part B'!C519) ->  | D36: =IF('Data Sheet for Part B'!D519="","",'Data Sheet for Part B'!D519) -> 
A37: 34 | B37: =IF('Data Sheet for Part B'!B520="","",'Data Sheet for Part B'!B520) ->  | C37: =IF('Data Sheet for Part B'!C520="","",'Data Sheet for Part B'!C520) ->  | D37: =IF('Data Sheet for Part B'!D520="","",'Data Sheet for Part B'!D520) -> 
A38: 35 | B38: =IF('Data Sheet for Part B'!B521="","",'Data Sheet for Part B'!B521) ->  | C38: =IF('Data Sheet for Part B'!C521="","",'Data Sheet for Part B'!C521) ->  | D38: =IF('Data Sheet for Part B'!D521="","",'Data Sheet for Part B'!D521) -> 
A39: 36 | B39: =IF('Data Sheet for Part B'!B522="","",'Data Sheet for Part B'!B522) ->  | C39: =IF('Data Sheet for Part B'!C522="","",'Data Sheet for Part B'!C522) ->  | D39: =IF('Data Sheet for Part B'!D522="","",'Data Sheet for Part B'!D522) -> 
A40: 37 | B40: =IF('Data Sheet for Part B'!B523="","",'Data Sheet for Part B'!B523) ->  | C40: =IF('Data Sheet for Part B'!C523="","",'Data Sheet for Part B'!C523) ->  | D40: =IF('Data Sheet for Part B'!D523="","",'Data Sheet for Part B'!D523) -> 
A41: 38 | B41: =IF('Data Sheet for Part B'!B524="","",'Data Sheet for Part B'!B524) ->  | C41: =IF('Data Sheet for Part B'!C524="","",'Data Sheet for Part B'!C524) ->  | D41: =IF('Data Sheet for Part B'!D524="","",'Data Sheet for Part B'!D524) -> 
A42: 39 | B42: =IF('Data Sheet for Part B'!B525="","",'Data Sheet for Part B'!B525) ->  | C42: =IF('Data Sheet for Part B'!C525="","",'Data Sheet for Part B'!C525) ->  | D42: =IF('Data Sheet for Part B'!D525="","",'Data Sheet for Part B'!D525) -> 
A43: 40 | B43: =IF('Data Sheet for Part B'!B526="","",'Data Sheet for Part B'!B526) ->  | C43: =IF('Data Sheet for Part B'!C526="","",'Data Sheet for Part B'!C526) ->  | D43: =IF('Data Sheet for Part B'!D526="","",'Data Sheet for Part B'!D526) -> 
A44: 41 | B44: =IF('Data Sheet for Part B'!B527="","",'Data Sheet for Part B'!B527) ->  | C44: =IF('Data Sheet for Part B'!C527="","",'Data Sheet for Part B'!C527) ->  | D44: =IF('Data Sheet for Part B'!D527="","",'Data Sheet for Part B'!D527) -> 
A45: 42 | B45: =IF('Data Sheet for Part B'!B528="","",'Data Sheet for Part B'!B528) ->  | C45: =IF('Data Sheet for Part B'!C528="","",'Data Sheet for Part B'!C528) ->  | D45: =IF('Data Sheet for Part B'!D528="","",'Data Sheet for Part B'!D528) -> 
A46: 43 | B46: =IF('Data Sheet for Part B'!B529="","",'Data Sheet for Part B'!B529) ->  | C46: =IF('Data Sheet for Part B'!C529="","",'Data Sheet for Part B'!C529) ->  | D46: =IF('Data Sheet for Part B'!D529="","",'Data Sheet for Part B'!D529) -> 
A47: 44 | B47: =IF('Data Sheet for Part B'!B530="","",'Data Sheet for Part B'!B530) ->  | C47: =IF('Data Sheet for Part B'!C530="","",'Data Sheet for Part B'!C530) ->  | D47: =IF('Data Sheet for Part B'!D530="","",'Data Sheet for Part B'!D530) -> 
A48: 45 | B48: =IF('Data Sheet for Part B'!B531="","",'Data Sheet for Part B'!B531) ->  | C48: =IF('Data Sheet for Part B'!C531="","",'Data Sheet for Part B'!C531) ->  | D48: =IF('Data Sheet for Part B'!D531="","",'Data Sheet for Part B'!D531) -> 
A49: 46 | B49: =IF('Data Sheet for Part B'!B532="","",'Data Sheet for Part B'!B532) ->  | C49: =IF('Data Sheet for Part B'!C532="","",'Data Sheet for Part B'!C532) ->  | D49: =IF('Data Sheet for Part B'!D532="","",'Data Sheet for Part B'!D532) -> 
A50: 47 | B50: =IF('Data Sheet for Part B'!B533="","",'Data Sheet for Part B'!B533) ->  | C50: =IF('Data Sheet for Part B'!C533="","",'Data Sheet for Part B'!C533) ->  | D50: =IF('Data Sheet for Part B'!D533="","",'Data Sheet for Part B'!D533) -> 
A51: 48 | B51: =IF('Data Sheet for Part B'!B534="","",'Data Sheet for Part B'!B534) ->  | C51: =IF('Data Sheet for Part B'!C534="","",'Data Sheet for Part B'!C534) ->  | D51: =IF('Data Sheet for Part B'!D534="","",'Data Sheet for Part B'!D534) -> 
A52: 49 | B52: =IF('Data Sheet for Part B'!B535="","",'Data Sheet for Part B'!B535) ->  | C52: =IF('Data Sheet for Part B'!C535="","",'Data Sheet for Part B'!C535) ->  | D52: =IF('Data Sheet for Part B'!D535="","",'Data Sheet for Part B'!D535) -> 
A53: 50 | B53: =IF('Data Sheet for Part B'!B536="","",'Data Sheet for Part B'!B536) ->  | C53: =IF('Data Sheet for Part B'!C536="","",'Data Sheet for Part B'!C536) ->  | D53: =IF('Data Sheet for Part B'!D536="","",'Data Sheet for Part B'!D536) -> 
A54: 51 | B54: =IF('Data Sheet for Part B'!B537="","",'Data Sheet for Part B'!B537) ->  | C54: =IF('Data Sheet for Part B'!C537="","",'Data Sheet for Part B'!C537) ->  | D54: =IF('Data Sheet for Part B'!D537="","",'Data Sheet for Part B'!D537) -> 
A55: 52 | B55: =IF('Data Sheet for Part B'!B538="","",'Data Sheet for Part B'!B538) ->  | C55: =IF('Data Sheet for Part B'!C538="","",'Data Sheet for Part B'!C538) ->  | D55: =IF('Data Sheet for Part B'!D538="","",'Data Sheet for Part B'!D538) -> 
A56: 53 | B56: =IF('Data Sheet for Part B'!B539="","",'Data Sheet for Part B'!B539) ->  | C56: =IF('Data Sheet for Part B'!C539="","",'Data Sheet for Part B'!C539) ->  | D56: =IF('Data Sheet for Part B'!D539="","",'Data Sheet for Part B'!D539) -> 
A57: 54 | B57: =IF('Data Sheet for Part B'!B540="","",'Data Sheet for Part B'!B540) ->  | C57: =IF('Data Sheet for Part B'!C540="","",'Data Sheet for Part B'!C540) ->  | D57: =IF('Data Sheet for Part B'!D540="","",'Data Sheet for Part B'!D540) -> 
A58: 55 | B58: =IF('Data Sheet for Part B'!B541="","",'Data Sheet for Part B'!B541) ->  | C58: =IF('Data Sheet for Part B'!C541="","",'Data Sheet for Part B'!C541) ->  | D58: =IF('Data Sheet for Part B'!D541="","",'Data Sheet for Part B'!D541) -> 
A59: 56 | B59: =IF('Data Sheet for Part B'!B542="","",'Data Sheet for Part B'!B542) ->  | C59: =IF('Data Sheet for Part B'!C542="","",'Data Sheet for Part B'!C542) ->  | D59: =IF('Data Sheet for Part B'!D542="","",'Data Sheet for Part B'!D542) -> 
A60: 57 | B60: =IF('Data Sheet for Part B'!B543="","",'Data Sheet for Part B'!B543) ->  | C60: =IF('Data Sheet for Part B'!C543="","",'Data Sheet for Part B'!C543) ->  | D60: =IF('Data Sheet for Part B'!D543="","",'Data Sheet for Part B'!D543) -> 
A61: 58 | B61: =IF('Data Sheet for Part B'!B544="","",'Data Sheet for Part B'!B544) ->  | C61: =IF('Data Sheet for Part B'!C544="","",'Data Sheet for Part B'!C544) ->  | D61: =IF('Data Sheet for Part B'!D544="","",'Data Sheet for Part B'!D544) -> 
A62: 59 | B62: =IF('Data Sheet for Part B'!B545="","",'Data Sheet for Part B'!B545) ->  | C62: =IF('Data Sheet for Part B'!C545="","",'Data Sheet for Part B'!C545) ->  | D62: =IF('Data Sheet for Part B'!D545="","",'Data Sheet for Part B'!D545) -> 
A63: 60 | B63: =IF('Data Sheet for Part B'!B546="","",'Data Sheet for Part B'!B546) ->  | C63: =IF('Data Sheet for Part B'!C546="","",'Data Sheet for Part B'!C546) ->  | D63: =IF('Data Sheet for Part B'!D546="","",'Data Sheet for Part B'!D546) -> 
A64: 61 | B64: =IF('Data Sheet for Part B'!B547="","",'Data Sheet for Part B'!B547) ->  | C64: =IF('Data Sheet for Part B'!C547="","",'Data Sheet for Part B'!C547) ->  | D64: =IF('Data Sheet for Part B'!D547="","",'Data Sheet for Part B'!D547) -> 
A65: 62 | B65: =IF('Data Sheet for Part B'!B548="","",'Data Sheet for Part B'!B548) ->  | C65: =IF('Data Sheet for Part B'!C548="","",'Data Sheet for Part B'!C548) ->  | D65: =IF('Data Sheet for Part B'!D548="","",'Data Sheet for Part B'!D548) -> 
A66: 63 | B66: =IF('Data Sheet for Part B'!B549="","",'Data Sheet for Part B'!B549) ->  | C66: =IF('Data Sheet for Part B'!C549="","",'Data Sheet for Part B'!C549) ->  | D66: =IF('Data Sheet for Part B'!D549="","",'Data Sheet for Part B'!D549) -> 
A67: 64 | B67: =IF('Data Sheet for Part B'!B550="","",'Data Sheet for Part B'!B550) ->  | C67: =IF('Data Sheet for Part B'!C550="","",'Data Sheet for Part B'!C550) ->  | D67: =IF('Data Sheet for Part B'!D550="","",'Data Sheet for Part B'!D550) -> 
A68: 65 | B68: =IF('Data Sheet for Part B'!B551="","",'Data Sheet for Part B'!B551) ->  | C68: =IF('Data Sheet for Part B'!C551="","",'Data Sheet for Part B'!C551) ->  | D68: =IF('Data Sheet for Part B'!D551="","",'Data Sheet for Part B'!D551) -> 
A69: 66 | B69: =IF('Data Sheet for Part B'!B552="","",'Data Sheet for Part B'!B552) ->  | C69: =IF('Data Sheet for Part B'!C552="","",'Data Sheet for Part B'!C552) ->  | D69: =IF('Data Sheet for Part B'!D552="","",'Data Sheet for Part B'!D552) -> 
A70: 67 | B70: =IF('Data Sheet for Part B'!B553="","",'Data Sheet for Part B'!B553) ->  | C70: =IF('Data Sheet for Part B'!C553="","",'Data Sheet for Part B'!C553) ->  | D70: =IF('Data Sheet for Part B'!D553="","",'Data Sheet for Part B'!D553) -> 
A71: 68 | B71: =IF('Data Sheet for Part B'!B554="","",'Data Sheet for Part B'!B554) ->  | C71: =IF('Data Sheet for Part B'!C554="","",'Data Sheet for Part B'!C554) ->  | D71: =IF('Data Sheet for Part B'!D554="","",'Data Sheet for Part B'!D554) -> 
A72: 69 | B72: =IF('Data Sheet for Part B'!B555="","",'Data Sheet for Part B'!B555) ->  | C72: =IF('Data Sheet for Part B'!C555="","",'Data Sheet for Part B'!C555) ->  | D72: =IF('Data Sheet for Part B'!D555="","",'Data Sheet for Part B'!D555) -> 
A73: 70 | B73: =IF('Data Sheet for Part B'!B556="","",'Data Sheet for Part B'!B556) ->  | C73: =IF('Data Sheet for Part B'!C556="","",'Data Sheet for Part B'!C556) ->  | D73: =IF('Data Sheet for Part B'!D556="","",'Data Sheet for Part B'!D556) -> 
A74: 71 | B74: =IF('Data Sheet for Part B'!B557="","",'Data Sheet for Part B'!B557) ->  | C74: =IF('Data Sheet for Part B'!C557="","",'Data Sheet for Part B'!C557) ->  | D74: =IF('Data Sheet for Part B'!D557="","",'Data Sheet for Part B'!D557) -> 
A75: 72 | B75: =IF('Data Sheet for Part B'!B558="","",'Data Sheet for Part B'!B558) ->  | C75: =IF('Data Sheet for Part B'!C558="","",'Data Sheet for Part B'!C558) ->  | D75: =IF('Data Sheet for Part B'!D558="","",'Data Sheet for Part B'!D558) -> 
A76: 73 | B76: =IF('Data Sheet for Part B'!B559="","",'Data Sheet for Part B'!B559) ->  | C76: =IF('Data Sheet for Part B'!C559="","",'Data Sheet for Part B'!C559) ->  | D76: =IF('Data Sheet for Part B'!D559="","",'Data Sheet for Part B'!D559) -> 
A77: 74 | B77: =IF('Data Sheet for Part B'!B560="","",'Data Sheet for Part B'!B560) ->  | C77: =IF('Data Sheet for Part B'!C560="","",'Data Sheet for Part B'!C560) ->  | D77: =IF('Data Sheet for Part B'!D560="","",'Data Sheet for Part B'!D560) -> 
A78: 75 | B78: =IF('Data Sheet for Part B'!B561="","",'Data Sheet for Part B'!B561) ->  | C78: =IF('Data Sheet for Part B'!C561="","",'Data Sheet for Part B'!C561) ->  | D78: =IF('Data Sheet for Part B'!D561="","",'Data Sheet for Part B'!D561) -> 
A79: 76 | B79: =IF('Data Sheet for Part B'!B562="","",'Data Sheet for Part B'!B562) ->  | C79: =IF('Data Sheet for Part B'!C562="","",'Data Sheet for Part B'!C562) ->  | D79: =IF('Data Sheet for Part B'!D562="","",'Data Sheet for Part B'!D562) -> 
A80: 77 | B80: =IF('Data Sheet for Part B'!B563="","",'Data Sheet for Part B'!B563) ->  | C80: =IF('Data Sheet for Part B'!C563="","",'Data Sheet for Part B'!C563) ->  | D80: =IF('Data Sheet for Part B'!D563="","",'Data Sheet for Part B'!D563) -> 
A81: 78 | B81: =IF('Data Sheet for Part B'!B564="","",'Data Sheet for Part B'!B564) ->  | C81: =IF('Data Sheet for Part B'!C564="","",'Data Sheet for Part B'!C564) ->  | D81: =IF('Data Sheet for Part B'!D564="","",'Data Sheet for Part B'!D564) -> 
A82: 79 | B82: =IF('Data Sheet for Part B'!B565="","",'Data Sheet for Part B'!B565) ->  | C82: =IF('Data Sheet for Part B'!C565="","",'Data Sheet for Part B'!C565) ->  | D82: =IF('Data Sheet for Part B'!D565="","",'Data Sheet for Part B'!D565) -> 
A83: 80 | B83: =IF('Data Sheet for Part B'!B566="","",'Data Sheet for Part B'!B566) ->  | C83: =IF('Data Sheet for Part B'!C566="","",'Data Sheet for Part B'!C566) ->  | D83: =IF('Data Sheet for Part B'!D566="","",'Data Sheet for Part B'!D566) -> 
A84: 81 | B84: =IF('Data Sheet for Part B'!B567="","",'Data Sheet for Part B'!B567) ->  | C84: =IF('Data Sheet for Part B'!C567="","",'Data Sheet for Part B'!C567) ->  | D84: =IF('Data Sheet for Part B'!D567="","",'Data Sheet for Part B'!D567) -> 
A85: 82 | B85: =IF('Data Sheet for Part B'!B568="","",'Data Sheet for Part B'!B568) ->  | C85: =IF('Data Sheet for Part B'!C568="","",'Data Sheet for Part B'!C568) ->  | D85: =IF('Data Sheet for Part B'!D568="","",'Data Sheet for Part B'!D568) -> 
A86: 83 | B86: =IF('Data Sheet for Part B'!B569="","",'Data Sheet for Part B'!B569) ->  | C86: =IF('Data Sheet for Part B'!C569="","",'Data Sheet for Part B'!C569) ->  | D86: =IF('Data Sheet for Part B'!D569="","",'Data Sheet for Part B'!D569) -> 
A87: 84 | B87: =IF('Data Sheet for Part B'!B570="","",'Data Sheet for Part B'!B570) ->  | C87: =IF('Data Sheet for Part B'!C570="","",'Data Sheet for Part B'!C570) ->  | D87: =IF('Data Sheet for Part B'!D570="","",'Data Sheet for Part B'!D570) -> 
A88: 85 | B88: =IF('Data Sheet for Part B'!B571="","",'Data Sheet for Part B'!B571) ->  | C88: =IF('Data Sheet for Part B'!C571="","",'Data Sheet for Part B'!C571) ->  | D88: =IF('Data Sheet for Part B'!D571="","",'Data Sheet for Part B'!D571) -> 
A89: 86 | B89: =IF('Data Sheet for Part B'!B572="","",'Data Sheet for Part B'!B572) ->  | C89: =IF('Data Sheet for Part B'!C572="","",'Data Sheet for Part B'!C572) ->  | D89: =IF('Data Sheet for Part B'!D572="","",'Data Sheet for Part B'!D572) -> 
A90: 87 | B90: =IF('Data Sheet for Part B'!B573="","",'Data Sheet for Part B'!B573) ->  | C90: =IF('Data Sheet for Part B'!C573="","",'Data Sheet for Part B'!C573) ->  | D90: =IF('Data Sheet for Part B'!D573="","",'Data Sheet for Part B'!D573) -> 
A91: 88 | B91: =IF('Data Sheet for Part B'!B574="","",'Data Sheet for Part B'!B574) ->  | C91: =IF('Data Sheet for Part B'!C574="","",'Data Sheet for Part B'!C574) ->  | D91: =IF('Data Sheet for Part B'!D574="","",'Data Sheet for Part B'!D574) -> 
A92: 89 | B92: =IF('Data Sheet for Part B'!B575="","",'Data Sheet for Part B'!B575) ->  | C92: =IF('Data Sheet for Part B'!C575="","",'Data Sheet for Part B'!C575) ->  | D92: =IF('Data Sheet for Part B'!D575="","",'Data Sheet for Part B'!D575) -> 
A93: 90 | B93: =IF('Data Sheet for Part B'!B576="","",'Data Sheet for Part B'!B576) ->  | C93: =IF('Data Sheet for Part B'!C576="","",'Data Sheet for Part B'!C576) ->  | D93: =IF('Data Sheet for Part B'!D576="","",'Data Sheet for Part B'!D576) -> 
A94: 91 | B94: =IF('Data Sheet for Part B'!B577="","",'Data Sheet for Part B'!B577) ->  | C94: =IF('Data Sheet for Part B'!C577="","",'Data Sheet for Part B'!C577) ->  | D94: =IF('Data Sheet for Part B'!D577="","",'Data Sheet for Part B'!D577) -> 
A95: 92 | B95: =IF('Data Sheet for Part B'!B578="","",'Data Sheet for Part B'!B578) ->  | C95: =IF('Data Sheet for Part B'!C578="","",'Data Sheet for Part B'!C578) ->  | D95: =IF('Data Sheet for Part B'!D578="","",'Data Sheet for Part B'!D578) -> 
A96: 93 | B96: =IF('Data Sheet for Part B'!B579="","",'Data Sheet for Part B'!B579) ->  | C96: =IF('Data Sheet for Part B'!C579="","",'Data Sheet for Part B'!C579) ->  | D96: =IF('Data Sheet for Part B'!D579="","",'Data Sheet for Part B'!D579) -> 
A97: 94 | B97: =IF('Data Sheet for Part B'!B580="","",'Data Sheet for Part B'!B580) ->  | C97: =IF('Data Sheet for Part B'!C580="","",'Data Sheet for Part B'!C580) ->  | D97: =IF('Data Sheet for Part B'!D580="","",'Data Sheet for Part B'!D580) -> 
A98: 95 | B98: =IF('Data Sheet for Part B'!B581="","",'Data Sheet for Part B'!B581) ->  | C98: =IF('Data Sheet for Part B'!C581="","",'Data Sheet for Part B'!C581) ->  | D98: =IF('Data Sheet for Part B'!D581="","",'Data Sheet for Part B'!D581) -> 
A99: 96 | B99: =IF('Data Sheet for Part B'!B582="","",'Data Sheet for Part B'!B582) ->  | C99: =IF('Data Sheet for Part B'!C582="","",'Data Sheet for Part B'!C582) ->  | D99: =IF('Data Sheet for Part B'!D582="","",'Data Sheet for Part B'!D582) -> 
A100: 97 | B100: =IF('Data Sheet for Part B'!B583="","",'Data Sheet for Part B'!B583) ->  | C100: =IF('Data Sheet for Part B'!C583="","",'Data Sheet for Part B'!C583) ->  | D100: =IF('Data Sheet for Part B'!D583="","",'Data Sheet for Part B'!D583) -> 
A101: 98 | B101: =IF('Data Sheet for Part B'!B584="","",'Data Sheet for Part B'!B584) ->  | C101: =IF('Data Sheet for Part B'!C584="","",'Data Sheet for Part B'!C584) ->  | D101: =IF('Data Sheet for Part B'!D584="","",'Data Sheet for Part B'!D584) -> 
A102: 99 | B102: =IF('Data Sheet for Part B'!B585="","",'Data Sheet for Part B'!B585) ->  | C102: =IF('Data Sheet for Part B'!C585="","",'Data Sheet for Part B'!C585) ->  | D102: =IF('Data Sheet for Part B'!D585="","",'Data Sheet for Part B'!D585) -> 
A103: 100 | B103: =IF('Data Sheet for Part B'!B586="","",'Data Sheet for Part B'!B586) ->  | C103: =IF('Data Sheet for Part B'!C586="","",'Data Sheet for Part B'!C586) ->  | D103: =IF('Data Sheet for Part B'!D586="","",'Data Sheet for Part B'!D586) -> 
A104: 101 | B104: =IF('Data Sheet for Part B'!B587="","",'Data Sheet for Part B'!B587) ->  | C104: =IF('Data Sheet for Part B'!C587="","",'Data Sheet for Part B'!C587) ->  | D104: =IF('Data Sheet for Part B'!D587="","",'Data Sheet for Part B'!D587) -> 
A105: 102 | B105: =IF('Data Sheet for Part B'!B588="","",'Data Sheet for Part B'!B588) ->  | C105: =IF('Data Sheet for Part B'!C588="","",'Data Sheet for Part B'!C588) ->  | D105: =IF('Data Sheet for Part B'!D588="","",'Data Sheet for Part B'!D588) -> 
A106: 103 | B106: =IF('Data Sheet for Part B'!B589="","",'Data Sheet for Part B'!B589) ->  | C106: =IF('Data Sheet for Part B'!C589="","",'Data Sheet for Part B'!C589) ->  | D106: =IF('Data Sheet for Part B'!D589="","",'Data Sheet for Part B'!D589) -> 
A107: 104 | B107: =IF('Data Sheet for Part B'!B590="","",'Data Sheet for Part B'!B590) ->  | C107: =IF('Data Sheet for Part B'!C590="","",'Data Sheet for Part B'!C590) ->  | D107: =IF('Data Sheet for Part B'!D590="","",'Data Sheet for Part B'!D590) -> 
A108: 105 | B108: =IF('Data Sheet for Part B'!B591="","",'Data Sheet for Part B'!B591) ->  | C108: =IF('Data Sheet for Part B'!C591="","",'Data Sheet for Part B'!C591) ->  | D108: =IF('Data Sheet for Part B'!D591="","",'Data Sheet for Part B'!D591) -> 
A109: 106 | B109: =IF('Data Sheet for Part B'!B592="","",'Data Sheet for Part B'!B592) ->  | C109: =IF('Data Sheet for Part B'!C592="","",'Data Sheet for Part B'!C592) ->  | D109: =IF('Data Sheet for Part B'!D592="","",'Data Sheet for Part B'!D592) -> 
A110: 107 | B110: =IF('Data Sheet for Part B'!B593="","",'Data Sheet for Part B'!B593) ->  | C110: =IF('Data Sheet for Part B'!C593="","",'Data Sheet for Part B'!C593) ->  | D110: =IF('Data Sheet for Part B'!D593="","",'Data Sheet for Part B'!D593) -> 
A111: 108 | B111: =IF('Data Sheet for Part B'!B594="","",'Data Sheet for Part B'!B594) ->  | C111: =IF('Data Sheet for Part B'!C594="","",'Data Sheet for Part B'!C594) ->  | D111: =IF('Data Sheet for Part B'!D594="","",'Data Sheet for Part B'!D594) -> 
A112: 109 | B112: =IF('Data Sheet for Part B'!B595="","",'Data Sheet for Part B'!B595) ->  | C112: =IF('Data Sheet for Part B'!C595="","",'Data Sheet for Part B'!C595) ->  | D112: =IF('Data Sheet for Part B'!D595="","",'Data Sheet for Part B'!D595) -> 
A113: 110 | B113: =IF('Data Sheet for Part B'!B596="","",'Data Sheet for Part B'!B596) ->  | C113: =IF('Data Sheet for Part B'!C596="","",'Data Sheet for Part B'!C596) ->  | D113: =IF('Data Sheet for Part B'!D596="","",'Data Sheet for Part B'!D596) -> 
A114: 111 | B114: =IF('Data Sheet for Part B'!B597="","",'Data Sheet for Part B'!B597) ->  | C114: =IF('Data Sheet for Part B'!C597="","",'Data Sheet for Part B'!C597) ->  | D114: =IF('Data Sheet for Part B'!D597="","",'Data Sheet for Part B'!D597) -> 
A115: 112 | B115: =IF('Data Sheet for Part B'!B598="","",'Data Sheet for Part B'!B598) ->  | C115: =IF('Data Sheet for Part B'!C598="","",'Data Sheet for Part B'!C598) ->  | D115: =IF('Data Sheet for Part B'!D598="","",'Data Sheet for Part B'!D598) -> 
A116: 113 | B116: =IF('Data Sheet for Part B'!B599="","",'Data Sheet for Part B'!B599) ->  | C116: =IF('Data Sheet for Part B'!C599="","",'Data Sheet for Part B'!C599) ->  | D116: =IF('Data Sheet for Part B'!D599="","",'Data Sheet for Part B'!D599) -> 
A117: 114 | B117: =IF('Data Sheet for Part B'!B600="","",'Data Sheet for Part B'!B600) ->  | C117: =IF('Data Sheet for Part B'!C600="","",'Data Sheet for Part B'!C600) ->  | D117: =IF('Data Sheet for Part B'!D600="","",'Data Sheet for Part B'!D600) -> 
A118: 115 | B118: =IF('Data Sheet for Part B'!B601="","",'Data Sheet for Part B'!B601) ->  | C118: =IF('Data Sheet for Part B'!C601="","",'Data Sheet for Part B'!C601) ->  | D118: =IF('Data Sheet for Part B'!D601="","",'Data Sheet for Part B'!D601) -> 
A119: 116 | B119: =IF('Data Sheet for Part B'!B602="","",'Data Sheet for Part B'!B602) ->  | C119: =IF('Data Sheet for Part B'!C602="","",'Data Sheet for Part B'!C602) ->  | D119: =IF('Data Sheet for Part B'!D602="","",'Data Sheet for Part B'!D602) -> 
A120: 117 | B120: =IF('Data Sheet for Part B'!B603="","",'Data Sheet for Part B'!B603) ->  | C120: =IF('Data Sheet for Part B'!C603="","",'Data Sheet for Part B'!C603) ->  | D120: =IF('Data Sheet for Part B'!D603="","",'Data Sheet for Part B'!D603) -> 
A121: 118 | B121: =IF('Data Sheet for Part B'!B604="","",'Data Sheet for Part B'!B604) ->  | C121: =IF('Data Sheet for Part B'!C604="","",'Data Sheet for Part B'!C604) ->  | D121: =IF('Data Sheet for Part B'!D604="","",'Data Sheet for Part B'!D604) -> 
A122: 119 | B122: =IF('Data Sheet for Part B'!B605="","",'Data Sheet for Part B'!B605) ->  | C122: =IF('Data Sheet for Part B'!C605="","",'Data Sheet for Part B'!C605) ->  | D122: =IF('Data Sheet for Part B'!D605="","",'Data Sheet for Part B'!D605) -> 
A123: 120 | B123: =IF('Data Sheet for Part B'!B606="","",'Data Sheet for Part B'!B606) ->  | C123: =IF('Data Sheet for Part B'!C606="","",'Data Sheet for Part B'!C606) ->  | D123: =IF('Data Sheet for Part B'!D606="","",'Data Sheet for Part B'!D606) -> 
A124: 121 | B124: =IF('Data Sheet for Part B'!B607="","",'Data Sheet for Part B'!B607) ->  | C124: =IF('Data Sheet for Part B'!C607="","",'Data Sheet for Part B'!C607) ->  | D124: =IF('Data Sheet for Part B'!D607="","",'Data Sheet for Part B'!D607) -> 
A125: 122 | B125: =IF('Data Sheet for Part B'!B608="","",'Data Sheet for Part B'!B608) ->  | C125: =IF('Data Sheet for Part B'!C608="","",'Data Sheet for Part B'!C608) ->  | D125: =IF('Data Sheet for Part B'!D608="","",'Data Sheet for Part B'!D608) -> 
A126: 123 | B126: =IF('Data Sheet for Part B'!B609="","",'Data Sheet for Part B'!B609) ->  | C126: =IF('Data Sheet for Part B'!C609="","",'Data Sheet for Part B'!C609) ->  | D126: =IF('Data Sheet for Part B'!D609="","",'Data Sheet for Part B'!D609) -> 
A127: 124 | B127: =IF('Data Sheet for Part B'!B610="","",'Data Sheet for Part B'!B610) ->  | C127: =IF('Data Sheet for Part B'!C610="","",'Data Sheet for Part B'!C610) ->  | D127: =IF('Data Sheet for Part B'!D610="","",'Data Sheet for Part B'!D610) -> 
A128: 125 | B128: =IF('Data Sheet for Part B'!B611="","",'Data Sheet for Part B'!B611) ->  | C128: =IF('Data Sheet for Part B'!C611="","",'Data Sheet for Part B'!C611) ->  | D128: =IF('Data Sheet for Part B'!D611="","",'Data Sheet for Part B'!D611) -> 
A129: 126 | B129: =IF('Data Sheet for Part B'!B612="","",'Data Sheet for Part B'!B612) ->  | C129: =IF('Data Sheet for Part B'!C612="","",'Data Sheet for Part B'!C612) ->  | D129: =IF('Data Sheet for Part B'!D612="","",'Data Sheet for Part B'!D612) -> 
A130: 127 | B130: =IF('Data Sheet for Part B'!B613="","",'Data Sheet for Part B'!B613) ->  | C130: =IF('Data Sheet for Part B'!C613="","",'Data Sheet for Part B'!C613) ->  | D130: =IF('Data Sheet for Part B'!D613="","",'Data Sheet for Part B'!D613) -> 
A131: 128 | B131: =IF('Data Sheet for Part B'!B614="","",'Data Sheet for Part B'!B614) ->  | C131: =IF('Data Sheet for Part B'!C614="","",'Data Sheet for Part B'!C614) ->  | D131: =IF('Data Sheet for Part B'!D614="","",'Data Sheet for Part B'!D614) -> 
A132: 129 | B132: =IF('Data Sheet for Part B'!B615="","",'Data Sheet for Part B'!B615) ->  | C132: =IF('Data Sheet for Part B'!C615="","",'Data Sheet for Part B'!C615) ->  | D132: =IF('Data Sheet for Part B'!D615="","",'Data Sheet for Part B'!D615) -> 
A133: 130 | B133: =IF('Data Sheet for Part B'!B616="","",'Data Sheet for Part B'!B616) ->  | C133: =IF('Data Sheet for Part B'!C616="","",'Data Sheet for Part B'!C616) ->  | D133: =IF('Data Sheet for Part B'!D616="","",'Data Sheet for Part B'!D616) -> 
A134: 131 | B134: =IF('Data Sheet for Part B'!B617="","",'Data Sheet for Part B'!B617) ->  | C134: =IF('Data Sheet for Part B'!C617="","",'Data Sheet for Part B'!C617) ->  | D134: =IF('Data Sheet for Part B'!D617="","",'Data Sheet for Part B'!D617) -> 
A135: 132 | B135: =IF('Data Sheet for Part B'!B618="","",'Data Sheet for Part B'!B618) ->  | C135: =IF('Data Sheet for Part B'!C618="","",'Data Sheet for Part B'!C618) ->  | D135: =IF('Data Sheet for Part B'!D618="","",'Data Sheet for Part B'!D618) -> 
A136: 133 | B136: =IF('Data Sheet for Part B'!B619="","",'Data Sheet for Part B'!B619) ->  | C136: =IF('Data Sheet for Part B'!C619="","",'Data Sheet for Part B'!C619) ->  | D136: =IF('Data Sheet for Part B'!D619="","",'Data Sheet for Part B'!D619) -> 
A137: 134 | B137: =IF('Data Sheet for Part B'!B620="","",'Data Sheet for Part B'!B620) ->  | C137: =IF('Data Sheet for Part B'!C620="","",'Data Sheet for Part B'!C620) ->  | D137: =IF('Data Sheet for Part B'!D620="","",'Data Sheet for Part B'!D620) -> 
A138: 135 | B138: =IF('Data Sheet for Part B'!B621="","",'Data Sheet for Part B'!B621) ->  | C138: =IF('Data Sheet for Part B'!C621="","",'Data Sheet for Part B'!C621) ->  | D138: =IF('Data Sheet for Part B'!D621="","",'Data Sheet for Part B'!D621) -> 
A139: 136 | B139: =IF('Data Sheet for Part B'!B622="","",'Data Sheet for Part B'!B622) ->  | C139: =IF('Data Sheet for Part B'!C622="","",'Data Sheet for Part B'!C622) ->  | D139: =IF('Data Sheet for Part B'!D622="","",'Data Sheet for Part B'!D622) -> 
A140: 137 | B140: =IF('Data Sheet for Part B'!B623="","",'Data Sheet for Part B'!B623) ->  | C140: =IF('Data Sheet for Part B'!C623="","",'Data Sheet for Part B'!C623) ->  | D140: =IF('Data Sheet for Part B'!D623="","",'Data Sheet for Part B'!D623) -> 
A141: 138 | B141: =IF('Data Sheet for Part B'!B624="","",'Data Sheet for Part B'!B624) ->  | C141: =IF('Data Sheet for Part B'!C624="","",'Data Sheet for Part B'!C624) ->  | D141: =IF('Data Sheet for Part B'!D624="","",'Data Sheet for Part B'!D624) -> 
A142: 139 | B142: =IF('Data Sheet for Part B'!B625="","",'Data Sheet for Part B'!B625) ->  | C142: =IF('Data Sheet for Part B'!C625="","",'Data Sheet for Part B'!C625) ->  | D142: =IF('Data Sheet for Part B'!D625="","",'Data Sheet for Part B'!D625) -> 
A143: 140 | B143: =IF('Data Sheet for Part B'!B626="","",'Data Sheet for Part B'!B626) ->  | C143: =IF('Data Sheet for Part B'!C626="","",'Data Sheet for Part B'!C626) ->  | D143: =IF('Data Sheet for Part B'!D626="","",'Data Sheet for Part B'!D626) -> 
A144: 141 | B144: =IF('Data Sheet for Part B'!B627="","",'Data Sheet for Part B'!B627) ->  | C144: =IF('Data Sheet for Part B'!C627="","",'Data Sheet for Part B'!C627) ->  | D144: =IF('Data Sheet for Part B'!D627="","",'Data Sheet for Part B'!D627) -> 
A145: 142 | B145: =IF('Data Sheet for Part B'!B628="","",'Data Sheet for Part B'!B628) ->  | C145: =IF('Data Sheet for Part B'!C628="","",'Data Sheet for Part B'!C628) ->  | D145: =IF('Data Sheet for Part B'!D628="","",'Data Sheet for Part B'!D628) -> 
A146: 143 | B146: =IF('Data Sheet for Part B'!B629="","",'Data Sheet for Part B'!B629) ->  | C146: =IF('Data Sheet for Part B'!C629="","",'Data Sheet for Part B'!C629) ->  | D146: =IF('Data Sheet for Part B'!D629="","",'Data Sheet for Part B'!D629) -> 
A147: 144 | B147: =IF('Data Sheet for Part B'!B630="","",'Data Sheet for Part B'!B630) ->  | C147: =IF('Data Sheet for Part B'!C630="","",'Data Sheet for Part B'!C630) ->  | D147: =IF('Data Sheet for Part B'!D630="","",'Data Sheet for Part B'!D630) -> 
A148: 145 | B148: =IF('Data Sheet for Part B'!B631="","",'Data Sheet for Part B'!B631) ->  | C148: =IF('Data Sheet for Part B'!C631="","",'Data Sheet for Part B'!C631) ->  | D148: =IF('Data Sheet for Part B'!D631="","",'Data Sheet for Part B'!D631) -> 
A149: 146 | B149: =IF('Data Sheet for Part B'!B632="","",'Data Sheet for Part B'!B632) ->  | C149: =IF('Data Sheet for Part B'!C632="","",'Data Sheet for Part B'!C632) ->  | D149: =IF('Data Sheet for Part B'!D632="","",'Data Sheet for Part B'!D632) -> 
A150: 147 | B150: =IF('Data Sheet for Part B'!B633="","",'Data Sheet for Part B'!B633) ->  | C150: =IF('Data Sheet for Part B'!C633="","",'Data Sheet for Part B'!C633) ->  | D150: =IF('Data Sheet for Part B'!D633="","",'Data Sheet for Part B'!D633) -> 
A151: 148 | B151: =IF('Data Sheet for Part B'!B634="","",'Data Sheet for Part B'!B634) ->  | C151: =IF('Data Sheet for Part B'!C634="","",'Data Sheet for Part B'!C634) ->  | D151: =IF('Data Sheet for Part B'!D634="","",'Data Sheet for Part B'!D634) -> 
A152: 149 | B152: =IF('Data Sheet for Part B'!B635="","",'Data Sheet for Part B'!B635) ->  | C152: =IF('Data Sheet for Part B'!C635="","",'Data Sheet for Part B'!C635) ->  | D152: =IF('Data Sheet for Part B'!D635="","",'Data Sheet for Part B'!D635) -> 
A153: 150 | B153: =IF('Data Sheet for Part B'!B636="","",'Data Sheet for Part B'!B636) ->  | C153: =IF('Data Sheet for Part B'!C636="","",'Data Sheet for Part B'!C636) ->  | D153: =IF('Data Sheet for Part B'!D636="","",'Data Sheet for Part B'!D636) -> 
A154: 151 | B154: =IF('Data Sheet for Part B'!B637="","",'Data Sheet for Part B'!B637) ->  | C154: =IF('Data Sheet for Part B'!C637="","",'Data Sheet for Part B'!C637) ->  | D154: =IF('Data Sheet for Part B'!D637="","",'Data Sheet for Part B'!D637) -> 
A155: 152 | B155: =IF('Data Sheet for Part B'!B638="","",'Data Sheet for Part B'!B638) ->  | C155: =IF('Data Sheet for Part B'!C638="","",'Data Sheet for Part B'!C638) ->  | D155: =IF('Data Sheet for Part B'!D638="","",'Data Sheet for Part B'!D638) -> 
A156: 153 | B156: =IF('Data Sheet for Part B'!B639="","",'Data Sheet for Part B'!B639) ->  | C156: =IF('Data Sheet for Part B'!C639="","",'Data Sheet for Part B'!C639) ->  | D156: =IF('Data Sheet for Part B'!D639="","",'Data Sheet for Part B'!D639) -> 
A157: 154 | B157: =IF('Data Sheet for Part B'!B640="","",'Data Sheet for Part B'!B640) ->  | C157: =IF('Data Sheet for Part B'!C640="","",'Data Sheet for Part B'!C640) ->  | D157: =IF('Data Sheet for Part B'!D640="","",'Data Sheet for Part B'!D640) -> 
A158: 155 | B158: =IF('Data Sheet for Part B'!B641="","",'Data Sheet for Part B'!B641) ->  | C158: =IF('Data Sheet for Part B'!C641="","",'Data Sheet for Part B'!C641) ->  | D158: =IF('Data Sheet for Part B'!D641="","",'Data Sheet for Part B'!D641) -> 
A159: 156 | B159: =IF('Data Sheet for Part B'!B642="","",'Data Sheet for Part B'!B642) ->  | C159: =IF('Data Sheet for Part B'!C642="","",'Data Sheet for Part B'!C642) ->  | D159: =IF('Data Sheet for Part B'!D642="","",'Data Sheet for Part B'!D642) -> 
A160: 157 | B160: =IF('Data Sheet for Part B'!B643="","",'Data Sheet for Part B'!B643) ->  | C160: =IF('Data Sheet for Part B'!C643="","",'Data Sheet for Part B'!C643) ->  | D160: =IF('Data Sheet for Part B'!D643="","",'Data Sheet for Part B'!D643) -> 
A161: 158 | B161: =IF('Data Sheet for Part B'!B644="","",'Data Sheet for Part B'!B644) ->  | C161: =IF('Data Sheet for Part B'!C644="","",'Data Sheet for Part B'!C644) ->  | D161: =IF('Data Sheet for Part B'!D644="","",'Data Sheet for Part B'!D644) -> 
A162: 159 | B162: =IF('Data Sheet for Part B'!B645="","",'Data Sheet for Part B'!B645) ->  | C162: =IF('Data Sheet for Part B'!C645="","",'Data Sheet for Part B'!C645) ->  | D162: =IF('Data Sheet for Part B'!D645="","",'Data Sheet for Part B'!D645) -> 
A163: 160 | B163: =IF('Data Sheet for Part B'!B646="","",'Data Sheet for Part B'!B646) ->  | C163: =IF('Data Sheet for Part B'!C646="","",'Data Sheet for Part B'!C646) ->  | D163: =IF('Data Sheet for Part B'!D646="","",'Data Sheet for Part B'!D646) -> 
A164: 161 | B164: =IF('Data Sheet for Part B'!B647="","",'Data Sheet for Part B'!B647) ->  | C164: =IF('Data Sheet for Part B'!C647="","",'Data Sheet for Part B'!C647) ->  | D164: =IF('Data Sheet for Part B'!D647="","",'Data Sheet for Part B'!D647) -> 
A165: 162 | B165: =IF('Data Sheet for Part B'!B648="","",'Data Sheet for Part B'!B648) ->  | C165: =IF('Data Sheet for Part B'!C648="","",'Data Sheet for Part B'!C648) ->  | D165: =IF('Data Sheet for Part B'!D648="","",'Data Sheet for Part B'!D648) -> 
A166: 163 | B166: =IF('Data Sheet for Part B'!B649="","",'Data Sheet for Part B'!B649) ->  | C166: =IF('Data Sheet for Part B'!C649="","",'Data Sheet for Part B'!C649) ->  | D166: =IF('Data Sheet for Part B'!D649="","",'Data Sheet for Part B'!D649) -> 
A167: 164 | B167: =IF('Data Sheet for Part B'!B650="","",'Data Sheet for Part B'!B650) ->  | C167: =IF('Data Sheet for Part B'!C650="","",'Data Sheet for Part B'!C650) ->  | D167: =IF('Data Sheet for Part B'!D650="","",'Data Sheet for Part B'!D650) -> 
A168: 165 | B168: =IF('Data Sheet for Part B'!B651="","",'Data Sheet for Part B'!B651) ->  | C168: =IF('Data Sheet for Part B'!C651="","",'Data Sheet for Part B'!C651) ->  | D168: =IF('Data Sheet for Part B'!D651="","",'Data Sheet for Part B'!D651) -> 
A169: 166 | B169: =IF('Data Sheet for Part B'!B652="","",'Data Sheet for Part B'!B652) ->  | C169: =IF('Data Sheet for Part B'!C652="","",'Data Sheet for Part B'!C652) ->  | D169: =IF('Data Sheet for Part B'!D652="","",'Data Sheet for Part B'!D652) -> 
A170: 167 | B170: =IF('Data Sheet for Part B'!B653="","",'Data Sheet for Part B'!B653) ->  | C170: =IF('Data Sheet for Part B'!C653="","",'Data Sheet for Part B'!C653) ->  | D170: =IF('Data Sheet for Part B'!D653="","",'Data Sheet for Part B'!D653) -> 
A171: 168 | B171: =IF('Data Sheet for Part B'!B654="","",'Data Sheet for Part B'!B654) ->  | C171: =IF('Data Sheet for Part B'!C654="","",'Data Sheet for Part B'!C654) ->  | D171: =IF('Data Sheet for Part B'!D654="","",'Data Sheet for Part B'!D654) -> 
A172: 169 | B172: =IF('Data Sheet for Part B'!B655="","",'Data Sheet for Part B'!B655) ->  | C172: =IF('Data Sheet for Part B'!C655="","",'Data Sheet for Part B'!C655) ->  | D172: =IF('Data Sheet for Part B'!D655="","",'Data Sheet for Part B'!D655) -> 
A173: 170 | B173: =IF('Data Sheet for Part B'!B656="","",'Data Sheet for Part B'!B656) ->  | C173: =IF('Data Sheet for Part B'!C656="","",'Data Sheet for Part B'!C656) ->  | D173: =IF('Data Sheet for Part B'!D656="","",'Data Sheet for Part B'!D656) -> 
A174: 171 | B174: =IF('Data Sheet for Part B'!B657="","",'Data Sheet for Part B'!B657) ->  | C174: =IF('Data Sheet for Part B'!C657="","",'Data Sheet for Part B'!C657) ->  | D174: =IF('Data Sheet for Part B'!D657="","",'Data Sheet for Part B'!D657) -> 
A175: 172 | B175: =IF('Data Sheet for Part B'!B658="","",'Data Sheet for Part B'!B658) ->  | C175: =IF('Data Sheet for Part B'!C658="","",'Data Sheet for Part B'!C658) ->  | D175: =IF('Data Sheet for Part B'!D658="","",'Data Sheet for Part B'!D658) -> 
A176: 173 | B176: =IF('Data Sheet for Part B'!B659="","",'Data Sheet for Part B'!B659) ->  | C176: =IF('Data Sheet for Part B'!C659="","",'Data Sheet for Part B'!C659) ->  | D176: =IF('Data Sheet for Part B'!D659="","",'Data Sheet for Part B'!D659) -> 
A177: 174 | B177: =IF('Data Sheet for Part B'!B660="","",'Data Sheet for Part B'!B660) ->  | C177: =IF('Data Sheet for Part B'!C660="","",'Data Sheet for Part B'!C660) ->  | D177: =IF('Data Sheet for Part B'!D660="","",'Data Sheet for Part B'!D660) -> 
A178: 175 | B178: =IF('Data Sheet for Part B'!B661="","",'Data Sheet for Part B'!B661) ->  | C178: =IF('Data Sheet for Part B'!C661="","",'Data Sheet for Part B'!C661) ->  | D178: =IF('Data Sheet for Part B'!D661="","",'Data Sheet for Part B'!D661) -> 
A179: 176 | B179: =IF('Data Sheet for Part B'!B662="","",'Data Sheet for Part B'!B662) ->  | C179: =IF('Data Sheet for Part B'!C662="","",'Data Sheet for Part B'!C662) ->  | D179: =IF('Data Sheet for Part B'!D662="","",'Data Sheet for Part B'!D662) -> 
A180: 177 | B180: =IF('Data Sheet for Part B'!B663="","",'Data Sheet for Part B'!B663) ->  | C180: =IF('Data Sheet for Part B'!C663="","",'Data Sheet for Part B'!C663) ->  | D180: =IF('Data Sheet for Part B'!D663="","",'Data Sheet for Part B'!D663) -> 
A181: 178 | B181: =IF('Data Sheet for Part B'!B664="","",'Data Sheet for Part B'!B664) ->  | C181: =IF('Data Sheet for Part B'!C664="","",'Data Sheet for Part B'!C664) ->  | D181: =IF('Data Sheet for Part B'!D664="","",'Data Sheet for Part B'!D664) -> 
A182: 179 | B182: =IF('Data Sheet for Part B'!B665="","",'Data Sheet for Part B'!B665) ->  | C182: =IF('Data Sheet for Part B'!C665="","",'Data Sheet for Part B'!C665) ->  | D182: =IF('Data Sheet for Part B'!D665="","",'Data Sheet for Part B'!D665) -> 
A183: 180 | B183: =IF('Data Sheet for Part B'!B666="","",'Data Sheet for Part B'!B666) ->  | C183: =IF('Data Sheet for Part B'!C666="","",'Data Sheet for Part B'!C666) ->  | D183: =IF('Data Sheet for Part B'!D666="","",'Data Sheet for Part B'!D666) -> 
A184: 181 | B184: =IF('Data Sheet for Part B'!B667="","",'Data Sheet for Part B'!B667) ->  | C184: =IF('Data Sheet for Part B'!C667="","",'Data Sheet for Part B'!C667) ->  | D184: =IF('Data Sheet for Part B'!D667="","",'Data Sheet for Part B'!D667) -> 
A185: 182 | B185: =IF('Data Sheet for Part B'!B668="","",'Data Sheet for Part B'!B668) ->  | C185: =IF('Data Sheet for Part B'!C668="","",'Data Sheet for Part B'!C668) ->  | D185: =IF('Data Sheet for Part B'!D668="","",'Data Sheet for Part B'!D668) -> 
A186: 183 | B186: =IF('Data Sheet for Part B'!B669="","",'Data Sheet for Part B'!B669) ->  | C186: =IF('Data Sheet for Part B'!C669="","",'Data Sheet for Part B'!C669) ->  | D186: =IF('Data Sheet for Part B'!D669="","",'Data Sheet for Part B'!D669) -> 
A187: 184 | B187: =IF('Data Sheet for Part B'!B670="","",'Data Sheet for Part B'!B670) ->  | C187: =IF('Data Sheet for Part B'!C670="","",'Data Sheet for Part B'!C670) ->  | D187: =IF('Data Sheet for Part B'!D670="","",'Data Sheet for Part B'!D670) -> 
A188: 185 | B188: =IF('Data Sheet for Part B'!B671="","",'Data Sheet for Part B'!B671) ->  | C188: =IF('Data Sheet for Part B'!C671="","",'Data Sheet for Part B'!C671) ->  | D188: =IF('Data Sheet for Part B'!D671="","",'Data Sheet for Part B'!D671) -> 
A189: 186 | B189: =IF('Data Sheet for Part B'!B672="","",'Data Sheet for Part B'!B672) ->  | C189: =IF('Data Sheet for Part B'!C672="","",'Data Sheet for Part B'!C672) ->  | D189: =IF('Data Sheet for Part B'!D672="","",'Data Sheet for Part B'!D672) -> 
A190: 187 | B190: =IF('Data Sheet for Part B'!B673="","",'Data Sheet for Part B'!B673) ->  | C190: =IF('Data Sheet for Part B'!C673="","",'Data Sheet for Part B'!C673) ->  | D190: =IF('Data Sheet for Part B'!D673="","",'Data Sheet for Part B'!D673) -> 
A191: 188 | B191: =IF('Data Sheet for Part B'!B674="","",'Data Sheet for Part B'!B674) ->  | C191: =IF('Data Sheet for Part B'!C674="","",'Data Sheet for Part B'!C674) ->  | D191: =IF('Data Sheet for Part B'!D674="","",'Data Sheet for Part B'!D674) -> 
A192: 189 | B192: =IF('Data Sheet for Part B'!B675="","",'Data Sheet for Part B'!B675) ->  | C192: =IF('Data Sheet for Part B'!C675="","",'Data Sheet for Part B'!C675) ->  | D192: =IF('Data Sheet for Part B'!D675="","",'Data Sheet for Part B'!D675) -> 
A193: 190 | B193: =IF('Data Sheet for Part B'!B676="","",'Data Sheet for Part B'!B676) ->  | C193: =IF('Data Sheet for Part B'!C676="","",'Data Sheet for Part B'!C676) ->  | D193: =IF('Data Sheet for Part B'!D676="","",'Data Sheet for Part B'!D676) -> 
A194: 191 | B194: =IF('Data Sheet for Part B'!B677="","",'Data Sheet for Part B'!B677) ->  | C194: =IF('Data Sheet for Part B'!C677="","",'Data Sheet for Part B'!C677) ->  | D194: =IF('Data Sheet for Part B'!D677="","",'Data Sheet for Part B'!D677) -> 
A195: 192 | B195: =IF('Data Sheet for Part B'!B678="","",'Data Sheet for Part B'!B678) ->  | C195: =IF('Data Sheet for Part B'!C678="","",'Data Sheet for Part B'!C678) ->  | D195: =IF('Data Sheet for Part B'!D678="","",'Data Sheet for Part B'!D678) -> 
A196: 193 | B196: =IF('Data Sheet for Part B'!B679="","",'Data Sheet for Part B'!B679) ->  | C196: =IF('Data Sheet for Part B'!C679="","",'Data Sheet for Part B'!C679) ->  | D196: =IF('Data Sheet for Part B'!D679="","",'Data Sheet for Part B'!D679) -> 
A197: 194 | B197: =IF('Data Sheet for Part B'!B680="","",'Data Sheet for Part B'!B680) ->  | C197: =IF('Data Sheet for Part B'!C680="","",'Data Sheet for Part B'!C680) ->  | D197: =IF('Data Sheet for Part B'!D680="","",'Data Sheet for Part B'!D680) -> 
A198: 195 | B198: =IF('Data Sheet for Part B'!B681="","",'Data Sheet for Part B'!B681) ->  | C198: =IF('Data Sheet for Part B'!C681="","",'Data Sheet for Part B'!C681) ->  | D198: =IF('Data Sheet for Part B'!D681="","",'Data Sheet for Part B'!D681) -> 
A199: 196 | B199: =IF('Data Sheet for Part B'!B682="","",'Data Sheet for Part B'!B682) ->  | C199: =IF('Data Sheet for Part B'!C682="","",'Data Sheet for Part B'!C682) ->  | D199: =IF('Data Sheet for Part B'!D682="","",'Data Sheet for Part B'!D682) -> 
A200: 197 | B200: =IF('Data Sheet for Part B'!B683="","",'Data Sheet for Part B'!B683) ->  | C200: =IF('Data Sheet for Part B'!C683="","",'Data Sheet for Part B'!C683) ->  | D200: =IF('Data Sheet for Part B'!D683="","",'Data Sheet for Part B'!D683) -> 
A201: 198 | B201: =IF('Data Sheet for Part B'!B684="","",'Data Sheet for Part B'!B684) ->  | C201: =IF('Data Sheet for Part B'!C684="","",'Data Sheet for Part B'!C684) ->  | D201: =IF('Data Sheet for Part B'!D684="","",'Data Sheet for Part B'!D684) -> 
... 302 more rows

Sheet Data Sheet for Part B
A1: Details for Form 16 Part B
A2: SL No: | B2: Emp No. | C2: Name | D2: PAN | E2: 1. Gross Salary | I2: 2. Less: Allowance to the extent exempt U/s 10 | P2: 3. Balance (1-2) | Q2: 4. Deductions : | S2: 5. Aggregate of 4(a) and (b) | T2: 6. Income chargebale under the head 'Salaries' (3-5) | U2: 7. Add: Any other income reported by the employee | Y2: 8. Gross Total income (6+7) | Z2: 9. Deductions under Chapter VI A | AA2: (A) sections 80C, 80CCC and 80CCD | AC2: (B) other sections under Chapter VI-A | AK2: 10. Aggregate of deductible amount under Chapter VI A | AL2: 11. Total Income (8-10) | AM2: 12. Tax on total income | AN2: 13. Rebate U/S 87A | AO2: 14. Tax Payable after rebate | AP2: 15. Education cess @ 3% | AQ2: 16. Tax Payable | AR2: 17. Less: Relief under section 89 (attach details) | AS2: 18. Tax Payable (15-16) | AT2: Tax deducted at current employeement | AU2: Tax deducted by others | AV2: Total tax deducted | AW2: Net tax payable /(Refundable)
E3: (a) Salary as per provisions contained in sec. 17(1) | F3: (b) Value of perquisites u/s 17(2) | G3: (c) Profits in lieu of salary under section 17(3) | H3: (d) Total | I3: a) Conveyance Allowance | J3: b) HRA Exemption | K3: c) Children Education | L3: d) Children Hostel | M3: e) Medical Reimbursement | N3: f) Leave travel allowance | O3: g) Total | Q3: (a) Entertainment allowance | R3: (b) Tax on employment | U3: a) Income from Previous Employeement | V3: b) Income from House Property | W3: c) Income from Other Sources | X3: d)Total | AA3: i) PF Contribution (80C) | AB3: ii) Other Deductions under 80C, 80CCC& 80CCD | AC3: 80CCD (1b) (Contribution to NPS) | AD3: 80CCG (RGESS) | AE3: 80D (Medical Insurance) | AF3: 80DD (Rehabilitation of Handicapped Dependent) | AG3: 80DDB (Medical Expenditure on Self or Dependent) | AH3: 80E (Interest on Loan for Higher Studies) | AI3: 80TTA (Interest on Savings account) | AJ3: 80U (Physical Disability)
A4: 1 | B4: 2225 | C4: Mr. A | D4: asdafq5345 | E4: 1233440 | F4: 1212 | G4: 111 | H4: =SUM(E4:G4) -> 1234763 | I4: 11 | J4: 22 | K4: 33 | L4: 44 | M4: 55 | N4: 66 | O4: =SUM(I4:N4) -> 231 | P4: =H4-O4 -> 1234532 | Q4: 20 | R4: 30 | S4: =SUM(Q4:R4) -> 50 | T4: =P4-S4 -> 1234482 | U4: 1111 | V4: 22221 | W4: 31313 | X4: =SUM(U4:W4) -> 54645 | Y4: =T4+X4 -> 1289127 | AA4: 1 | AB4: 2 | AC4: 3 | AD4: 4 | AE4: 5 | AF4: 6 | AG4: 7 | AH4: 8 | AI4: 9 | AJ4: 10 | AK4: =SUM(AA4:AJ4) -> 55 | AL4: =Y4-AK4 -> 1289072 | AM4: =IF(AL4>1000000,(125000+(AL4-1000000)*30%),IF(AL4>500000,(25000+(AL4-500000)*20%),IF(AL4>250000,((AL4-250000)*10%),0))) -> 211721.6 | AN4: =IF(AL4<500001,(MIN(AM4,5000)),0) -> 0 | AO4: =+AM4-AN4 -> 211721.6 | AP4: =+AO4*3% -> 6351.648 | AQ4: =+AO4+AP4 -> 218073.248 | AS4: =AQ4-AR4 -> 218073.248 | AV4: =SUM(AT4:AU4) -> 0 | AW4: =AS4-AV4 -> 218073.248
A5: 2 | H5: =SUM(E5:G5) -> 0 | O5: =SUM(I5:N5) -> 0 | P5: =H5-O5 -> 0 | S5: =SUM(Q5:R5) -> 0 | T5: =P5-S5 -> 0 | X5: =SUM(U5:W5) -> 0 | Y5: =T5+X5 -> 0 | AK5: =SUM(AA5:AJ5) -> 0 | AL5: =Y5-AK5 -> 0 | AM5: =IF(AL5>1000000,(125000+(AL5-1000000)*30%),IF(AL5>500000,(25000+(AL5-500000)*20%),IF(AL5>250000,((AL5-250000)*10%),0))) -> 0 | AN5: =IF(AL5<500001,(MIN(AM5,5000)),0) -> 0 | AO5: =+AM5-AN5 -> 0 | AP5: =+AO5*3% -> 0 | AQ5: =+AO5+AP5 -> 0 | AS5: =AQ5-AR5 -> 0 | AV5: =SUM(AT5:AU5) -> 0 | AW5: =AS5-AV5 -> 0
A6: 3 | H6: 0 | O6: 0 | P6: 0 | S6: 0 | T6: 0 | X6: 0 | Y6: 0 | AK6: 0 | AL6: 0 | AM6: 0 | AN6: 0 | AO6: 0 | AP6: 0 | AQ6: 0 | AS6: 0 | AV6: 0 | AW6: 0
A7: 4 | H7: 0 | O7: 0 | P7: 0 | S7: 0 | T7: 0 | X7: 0 | Y7: 0 | AK7: 0 | AL7: 0 | AM7: 0 | AN7: 0 | AO7: 0 | AP7: 0 | AQ7: 0 | AS7: 0 | AV7: 0 | AW7: 0
A8: 5 | H8: 0 | O8: 0 | P8: 0 | S8: 0 | T8: 0 | X8: 0 | Y8: 0 | AK8: 0 | AL8: 0 | AM8: 0 | AN8: 0 | AO8: 0 | AP8: 0 | AQ8: 0 | AS8: 0 | AV8: 0 | AW8: 0
A9: 6 | H9: 0 | O9: 0 | P9: 0 | S9: 0 | T9: 0 | X9: 0 | Y9: 0 | AK9: 0 | AL9: 0 | AM9: 0 | AN9: 0 | AO9: 0 | AP9: 0 | AQ9: 0 | AS9: 0 | AV9: 0 | AW9: 0
A10: 7 | H10: 0 | O10: 0 | P10: 0 | S10: 0 | T10: 0 | X10: 0 | Y10: 0 | AK10: 0 | AL10: 0 | AM10: 0 | AN10: 0 | AO10: 0 | AP10: 0 | AQ10: 0 | AS10: 0 | AV10: 0 | AW10: 0
A11: 8 | H11: 0 | O11: 0 | P11: 0 | S11: 0 | T11: 0 | X11: 0 | Y11: 0 | AK11: 0 | AL11: 0 | AM11: 0 | AN11: 0 | AO11: 0 | AP11: 0 | AQ11: 0 | AS11: 0 | AV11: 0 | AW11: 0
A12: 9 | H12: 0 | O12: 0 | P12: 0 | S12: 0 | T12: 0 | X12: 0 | Y12: 0 | AK12: 0 | AL12: 0 | AM12: 0 | AN12: 0 | AO12: 0 | AP12: 0 | AQ12: 0 | AS12: 0 | AV12: 0 | AW12: 0
A13: 10 | H13: 0 | O13: 0 | P13: 0 | S13: 0 | T13: 0 | X13: 0 | Y13: 0 | AK13: 0 | AL13: 0 | AM13: 0 | AN13: 0 | AO13: 0 | AP13: 0 | AQ13: 0 | AS13: 0 | AV13: 0 | AW13: 0
A14: 11 | H14: 0 | O14: 0 | P14: 0 | S14: 0 | T14: 0 | X14: 0 | Y14: 0 | AK14: 0 | AL14: 0 | AM14: 0 | AN14: 0 | AO14: 0 | AP14: 0 | AQ14: 0 | AS14: 0 | AV14: 0 | AW14: 0
A15: 12 | H15: 0 | O15: 0 | P15: 0 | S15: 0 | T15: 0 | X15: 0 | Y15: 0 | AK15: 0 | AL15: 0 | AM15: 0 | AN15: 0 | AO15: 0 | AP15: 0 | AQ15: 0 | AS15: 0 | AV15: 0 | AW15: 0
A16: 13 | H16: 0 | O16: 0 | P16: 0 | S16: 0 | T16: 0 | X16: 0 | Y16: 0 | AK16: 0 | AL16: 0 | AM16: 0 | AN16: 0 | AO16: 0 | AP16: 0 | AQ16: 0 | AS16: 0 | AV16: 0 | AW16: 0
A17: 14 | H17: 0 | O17: 0 | P17: 0 | S17: 0 | T17: 0 | X17: 0 | Y17: 0 | AK17: 0 | AL17: 0 | AM17: 0 | AN17: 0 | AO17: 0 | AP17: 0 | AQ17: 0 | AS17: 0 | AV17: 0 | AW17: 0
A18: 15 | H18: 0 | O18: 0 | P18: 0 | S18: 0 | T18: 0 | X18: 0 | Y18: 0 | AK18: 0 | AL18: 0 | AM18: 0 | AN18: 0 | AO18: 0 | AP18: 0 | AQ18: 0 | AS18: 0 | AV18: 0 | AW18: 0
A19: 16 | H19: 0 | O19: 0 | P19: 0 | S19: 0 | T19: 0 | X19: 0 | Y19: 0 | AK19: 0 | AL19: 0 | AM19: 0 | AN19: 0 | AO19: 0 | AP19: 0 | AQ19: 0 | AS19: 0 | AV19: 0 | AW19: 0
A20: 17 | H20: 0 | O20: 0 | P20: 0 | S20: 0 | T20: 0 | X20: 0 | Y20: 0 | AK20: 0 | AL20: 0 | AM20: 0 | AN20: 0 | AO20: 0 | AP20: 0 | AQ20: 0 | AS20: 0 | AV20: 0 | AW20: 0
A21: 18 | H21: 0 | O21: 0 | P21: 0 | S21: 0 | T21: 0 | X21: 0 | Y21: 0 | AK21: 0 | AL21: 0 | AM21: 0 | AN21: 0 | AO21: 0 | AP21: 0 | AQ21: 0 | AS21: 0 | AV21: 0 | AW21: 0
A22: 19 | H22: 0 | O22: 0 | P22: 0 | S22: 0 | T22: 0 | X22: 0 | Y22: 0 | AK22: 0 | AL22: 0 | AM22: 0 | AN22: 0 | AO22: 0 | AP22: 0 | AQ22: 0 | AS22: 0 | AV22: 0 | AW22: 0
A23: 20 | H23: 0 | O23: 0 | P23: 0 | S23: 0 | T23: 0 | X23: 0 | Y23: 0 | AK23: 0 | AL23: 0 | AM23: 0 | AN23: 0 | AO23: 0 | AP23: 0 | AQ23: 0 | AS23: 0 | AV23: 0 | AW23: 0
A24: 21 | H24: 0 | O24: 0 | P24: 0 | S24: 0 | T24: 0 | X24: 0 | Y24: 0 | AK24: 0 | AL24: 0 | AM24: 0 | AN24: 0 | AO24: 0 | AP24: 0 | AQ24: 0 | AS24: 0 | AV24: 0 | AW24: 0
A25: 22 | H25: 0 | O25: 0 | P25: 0 | S25: 0 | T25: 0 | X25: 0 | Y25: 0 | AK25: 0 | AL25: 0 | AM25: 0 | AN25: 0 | AO25: 0 | AP25: 0 | AQ25: 0 | AS25: 0 | AV25: 0 | AW25: 0
A26: 23 | H26: 0 | O26: 0 | P26: 0 | S26: 0 | T26: 0 | X26: 0 | Y26: 0 | AK26: 0 | AL26: 0 | AM26: 0 | AN26: 0 | AO26: 0 | AP26: 0 | AQ26: 0 | AS26: 0 | AV26: 0 | AW26: 0
A27: 24 | H27: 0 | O27: 0 | P27: 0 | S27: 0 | T27: 0 | X27: 0 | Y27: 0 | AK27: 0 | AL27: 0 | AM27: 0 | AN27: 0 | AO27: 0 | AP27: 0 | AQ27: 0 | AS27: 0 | AV27: 0 | AW27: 0
A28: 25 | H28: 0 | O28: 0 | P28: 0 | S28: 0 | T28: 0 | X28: 0 | Y28: 0 | AK28: 0 | AL28: 0 | AM28: 0 | AN28: 0 | AO28: 0 | AP28: 0 | AQ28: 0 | AS28: 0 | AV28: 0 | AW28: 0
A29: 26 | H29: 0 | O29: 0 | P29: 0 | S29: 0 | T29: 0 | X29: 0 | Y29: 0 | AK29: 0 | AL29: 0 | AM29: 0 | AN29: 0 | AO29: 0 | AP29: 0 | AQ29: 0 | AS29: 0 | AV29: 0 | AW29: 0
A30: 27 | H30: 0 | O30: 0 | P30: 0 | S30: 0 | T30: 0 | X30: 0 | Y30: 0 | AK30: 0 | AL30: 0 | AM30: 0 | AN30: 0 | AO30: 0 | AP30: 0 | AQ30: 0 | AS30: 0 | AV30: 0 | AW30: 0
A31: 28 | H31: 0 | O31: 0 | P31: 0 | S31: 0 | T31: 0 | X31: 0 | Y31: 0 | AK31: 0 | AL31: 0 | AM31: 0 | AN31: 0 | AO31: 0 | AP31: 0 | AQ31: 0 | AS31: 0 | AV31: 0 | AW31: 0
A32: 29 | H32: 0 | O32: 0 | P32: 0 | S32: 0 | T32: 0 | X32: 0 | Y32: 0 | AK32: 0 | AL32: 0 | AM32: 0 | AN32: 0 | AO32: 0 | AP32: 0 | AQ32: 0 | AS32: 0 | AV32: 0 | AW32: 0
A33: 30 | H33: 0 | O33: 0 | P33: 0 | S33: 0 | T33: 0 | X33: 0 | Y33: 0 | AK33: 0 | AL33: 0 | AM33: 0 | AN33: 0 | AO33: 0 | AP33: 0 | AQ33: 0 | AS33: 0 | AV33: 0 | AW33: 0
A34: 31 | H34: 0 | O34: 0 | P34: 0 | S34: 0 | T34: 0 | X34: 0 | Y34: 0 | AK34: 0 | AL34: 0 | AM34: 0 | AN34: 0 | AO34: 0 | AP34: 0 | AQ34: 0 | AS34: 0 | AV34: 0 | AW34: 0
A35: 32 | H35: 0 | O35: 0 | P35: 0 | S35: 0 | T35: 0 | X35: 0 | Y35: 0 | AK35: 0 | AL35: 0 | AM35: 0 | AN35: 0 | AO35: 0 | AP35: 0 | AQ35: 0 | AS35: 0 | AV35: 0 | AW35: 0
A36: 33 | H36: 0 | O36: 0 | P36: 0 | S36: 0 | T36: 0 | X36: 0 | Y36: 0 | AK36: 0 | AL36: 0 | AM36: 0 | AN36: 0 | AO36: 0 | AP36: 0 | AQ36: 0 | AS36: 0 | AV36: 0 | AW36: 0
A37: 34 | H37: 0 | O37: 0 | P37: 0 | S37: 0 | T37: 0 | X37: 0 | Y37: 0 | AK37: 0 | AL37: 0 | AM37: 0 | AN37: 0 | AO37: 0 | AP37: 0 | AQ37: 0 | AS37: 0 | AV37: 0 | AW37: 0
A38: 35 | H38: 0 | O38: 0 | P38: 0 | S38: 0 | T38: 0 | X38: 0 | Y38: 0 | AK38: 0 | AL38: 0 | AM38: 0 | AN38: 0 | AO38: 0 | AP38: 0 | AQ38: 0 | AS38: 0 | AV38: 0 | AW38: 0
A39: 36 | H39: 0 | O39: 0 | P39: 0 | S39: 0 | T39: 0 | X39: 0 | Y39: 0 | AK39: 0 | AL39: 0 | AM39: 0 | AN39: 0 | AO39: 0 | AP39: 0 | AQ39: 0 | AS39: 0 | AV39: 0 | AW39: 0
A40: 37 | H40: 0 | O40: 0 | P40: 0 | S40: 0 | T40: 0 | X40: 0 | Y40: 0 | AK40: 0 | AL40: 0 | AM40: 0 | AN40: 0 | AO40: 0 | AP40: 0 | AQ40: 0 | AS40: 0 | AV40: 0 | AW40: 0
A41: 38 | H41: 0 | O41: 0 | P41: 0 | S41: 0 | T41: 0 | X41: 0 | Y41: 0 | AK41: 0 | AL41: 0 | AM41: 0 | AN41: 0 | AO41: 0 | AP41: 0 | AQ41: 0 | AS41: 0 | AV41: 0 | AW41: 0
A42: 39 | H42: 0 | O42: 0 | P42: 0 | S42: 0 | T42: 0 | X42: 0 | Y42: 0 | AK42: 0 | AL42: 0 | AM42: 0 | AN42: 0 | AO42: 0 | AP42: 0 | AQ42: 0 | AS42: 0 | AV42: 0 | AW42: 0
A43: 40 | H43: 0 | O43: 0 | P43: 0 | S43: 0 | T43: 0 | X43: 0 | Y43: 0 | AK43: 0 | AL43: 0 | AM43: 0 | AN43: 0 | AO43: 0 | AP43: 0 | AQ43: 0 | AS43: 0 | AV43: 0 | AW43: 0
A44: 41 | H44: 0 | O44: 0 | P44: 0 | S44: 0 | T44: 0 | X44: 0 | Y44: 0 | AK44: 0 | AL44: 0 | AM44: 0 | AN44: 0 | AO44: 0 | AP44: 0 | AQ44: 0 | AS44: 0 | AV44: 0 | AW44: 0
A45: 42 | H45: 0 | O45: 0 | P45: 0 | S45: 0 | T45: 0 | X45: 0 | Y45: 0 | AK45: 0 | AL45: 0 | AM45: 0 | AN45: 0 | AO45: 0 | AP45: 0 | AQ45: 0 | AS45: 0 | AV45: 0 | AW45: 0
A46: 43 | H46: 0 | O46: 0 | P46: 0 | S46: 0 | T46: 0 | X46: 0 | Y46: 0 | AK46: 0 | AL46: 0 | AM46: 0 | AN46: 0 | AO46: 0 | AP46: 0 | AQ46: 0 | AS46: 0 | AV46: 0 | AW46: 0
A47: 44 | H47: 0 | O47: 0 | P47: 0 | S47: 0 | T47: 0 | X47: 0 | Y47: 0 | AK47: 0 | AL47: 0 | AM47: 0 | AN47: 0 | AO47: 0 | AP47: 0 | AQ47: 0 | AS47: 0 | AV47: 0 | AW47: 0
A48: 45 | H48: 0 | O48: 0 | P48: 0 | S48: 0 | T48: 0 | X48: 0 | Y48: 0 | AK48: 0 | AL48: 0 | AM48: 0 | AN48: 0 | AO48: 0 | AP48: 0 | AQ48: 0 | AS48: 0 | AV48: 0 | AW48: 0
A49: 46 | H49: 0 | O49: 0 | P49: 0 | S49: 0 | T49: 0 | X49: 0 | Y49: 0 | AK49: 0 | AL49: 0 | AM49: 0 | AN49: 0 | AO49: 0 | AP49: 0 | AQ49: 0 | AS49: 0 | AV49: 0 | AW49: 0
A50: 47 | H50: 0 | O50: 0 | P50: 0 | S50: 0 | T50: 0 | X50: 0 | Y50: 0 | AK50: 0 | AL50: 0 | AM50: 0 | AN50: 0 | AO50: 0 | AP50: 0 | AQ50: 0 | AS50: 0 | AV50: 0 | AW50: 0
A51: 48 | H51: 0 | O51: 0 | P51: 0 | S51: 0 | T51: 0 | X51: 0 | Y51: 0 | AK51: 0 | AL51: 0 | AM51: 0 | AN51: 0 | AO51: 0 | AP51: 0 | AQ51: 0 | AS51: 0 | AV51: 0 | AW51: 0
A52: 49 | H52: 0 | O52: 0 | P52: 0 | S52: 0 | T52: 0 | X52: 0 | Y52: 0 | AK52: 0 | AL52: 0 | AM52: 0 | AN52: 0 | AO52: 0 | AP52: 0 | AQ52: 0 | AS52: 0 | AV52: 0 | AW52: 0
A53: 50 | H53: 0 | O53: 0 | P53: 0 | S53: 0 | T53: 0 | X53: 0 | Y53: 0 | AK53: 0 | AL53: 0 | AM53: 0 | AN53: 0 | AO53: 0 | AP53: 0 | AQ53: 0 | AS53: 0 | AV53: 0 | AW53: 0
A54: 51 | H54: 0 | O54: 0 | P54: 0 | S54: 0 | T54: 0 | X54: 0 | Y54: 0 | AK54: 0 | AL54: 0 | AM54: 0 | AN54: 0 | AO54: 0 | AP54: 0 | AQ54: 0 | AS54: 0 | AV54: 0 | AW54: 0
A55: 52 | H55: 0 | O55: 0 | P55: 0 | S55: 0 | T55: 0 | X55: 0 | Y55: 0 | AK55: 0 | AL55: 0 | AM55: 0 | AN55: 0 | AO55: 0 | AP55: 0 | AQ55: 0 | AS55: 0 | AV55: 0 | AW55: 0
A56: 53 | H56: 0 | O56: 0 | P56: 0 | S56: 0 | T56: 0 | X56: 0 | Y56: 0 | AK56: 0 | AL56: 0 | AM56: 0 | AN56: 0 | AO56: 0 | AP56: 0 | AQ56: 0 | AS56: 0 | AV56: 0 | AW56: 0
A57: 54 | H57: 0 | O57: 0 | P57: 0 | S57: 0 | T57: 0 | X57: 0 | Y57: 0 | AK57: 0 | AL57: 0 | AM57: 0 | AN57: 0 | AO57: 0 | AP57: 0 | AQ57: 0 | AS57: 0 | AV57: 0 | AW57: 0
A58: 55 | H58: 0 | O58: 0 | P58: 0 | S58: 0 | T58: 0 | X58: 0 | Y58: 0 | AK58: 0 | AL58: 0 | AM58: 0 | AN58: 0 | AO58: 0 | AP58: 0 | AQ58: 0 | AS58: 0 | AV58: 0 | AW58: 0
A59: 56 | H59: 0 | O59: 0 | P59: 0 | S59: 0 | T59: 0 | X59: 0 | Y59: 0 | AK59: 0 | AL59: 0 | AM59: 0 | AN59: 0 | AO59: 0 | AP59: 0 | AQ59: 0 | AS59: 0 | AV59: 0 | AW59: 0
A60: 57 | H60: 0 | O60: 0 | P60: 0 | S60: 0 | T60: 0 | X60: 0 | Y60: 0 | AK60: 0 | AL60: 0 | AM60: 0 | AN60: 0 | AO60: 0 | AP60: 0 | AQ60: 0 | AS60: 0 | AV60: 0 | AW60: 0
A61: 58 | H61: 0 | O61: 0 | P61: 0 | S61: 0 | T61: 0 | X61: 0 | Y61: 0 | AK61: 0 | AL61: 0 | AM61: 0 | AN61: 0 | AO61: 0 | AP61: 0 | AQ61: 0 | AS61: 0 | AV61: 0 | AW61: 0
A62: 59 | H62: 0 | O62: 0 | P62: 0 | S62: 0 | T62: 0 | X62: 0 | Y62: 0 | AK62: 0 | AL62: 0 | AM62: 0 | AN62: 0 | AO62: 0 | AP62: 0 | AQ62: 0 | AS62: 0 | AV62: 0 | AW62: 0
A63: 60 | H63: 0 | O63: 0 | P63: 0 | S63: 0 | T63: 0 | X63: 0 | Y63: 0 | AK63: 0 | AL63: 0 | AM63: 0 | AN63: 0 | AO63: 0 | AP63: 0 | AQ63: 0 | AS63: 0 | AV63: 0 | AW63: 0
A64: 61 | H64: 0 | O64: 0 | P64: 0 | S64: 0 | T64: 0 | X64: 0 | Y64: 0 | AK64: 0 | AL64: 0 | AM64: 0 | AN64: 0 | AO64: 0 | AP64: 0 | AQ64: 0 | AS64: 0 | AV64: 0 | AW64: 0
A65: 62 | H65: 0 | O65: 0 | P65: 0 | S65: 0 | T65: 0 | X65: 0 | Y65: 0 | AK65: 0 | AL65: 0 | AM65: 0 | AN65: 0 | AO65: 0 | AP65: 0 | AQ65: 0 | AS65: 0 | AV65: 0 | AW65: 0
A66: 63 | H66: 0 | O66: 0 | P66: 0 | S66: 0 | T66: 0 | X66: 0 | Y66: 0 | AK66: 0 | AL66: 0 | AM66: 0 | AN66: 0 | AO66: 0 | AP66: 0 | AQ66: 0 | AS66: 0 | AV66: 0 | AW66: 0
A67: 64 | H67: 0 | O67: 0 | P67: 0 | S67: 0 | T67: 0 | X67: 0 | Y67: 0 | AK67: 0 | AL67: 0 | AM67: 0 | AN67: 0 | AO67: 0 | AP67: 0 | AQ67: 0 | AS67: 0 | AV67: 0 | AW67: 0
A68: 65 | H68: 0 | O68: 0 | P68: 0 | S68: 0 | T68: 0 | X68: 0 | Y68: 0 | AK68: 0 | AL68: 0 | AM68: 0 | AN68: 0 | AO68: 0 | AP68: 0 | AQ68: 0 | AS68: 0 | AV68: 0 | AW68: 0
A69: 66 | H69: =SUM(E69:G69) -> 0 | O69: =SUM(I69:N69) -> 0 | P69: =H69-O69 -> 0 | S69: =SUM(Q69:R69) -> 0 | T69: =P69-S69 -> 0 | X69: =SUM(U69:W69) -> 0 | Y69: =T69+X69 -> 0 | AK69: =SUM(AA69:AJ69) -> 0 | AL69: =Y69-AK69 -> 0 | AM69: =IF(AL69>1000000,(125000+(AL69-1000000)*30%),IF(AL69>500000,(25000+(AL69-500000)*20%),IF(AL69>250000,((AL69-250000)*10%),0))) -> 0 | AN69: =IF(AL69<500001,(MIN(AM69,5000)),0) -> 0 | AO69: =+AM69-AN69 -> 0 | AP69: =+AO69*3% -> 0 | AQ69: =+AO69+AP69 -> 0 | AS69: =AQ69-AR69 -> 0 | AV69: =SUM(AT69:AU69) -> 0 | AW69: =AS69-AV69 -> 0
A70: 67 | H70: 0 | O70: 0 | P70: 0 | S70: 0 | T70: 0 | X70: 0 | Y70: 0 | AK70: 0 | AL70: 0 | AM70: 0 | AN70: 0 | AO70: 0 | AP70: 0 | AQ70: 0 | AS70: 0 | AV70: 0 | AW70: 0
A71: 68 | H71: 0 | O71: 0 | P71: 0 | S71: 0 | T71: 0 | X71: 0 | Y71: 0 | AK71: 0 | AL71: 0 | AM71: 0 | AN71: 0 | AO71: 0 | AP71: 0 | AQ71: 0 | AS71: 0 | AV71: 0 | AW71: 0
A72: 69 | H72: 0 | O72: 0 | P72: 0 | S72: 0 | T72: 0 | X72: 0 | Y72: 0 | AK72: 0 | AL72: 0 | AM72: 0 | AN72: 0 | AO72: 0 | AP72: 0 | AQ72: 0 | AS72: 0 | AV72: 0 | AW72: 0
A73: 70 | H73: 0 | O73: 0 | P73: 0 | S73: 0 | T73: 0 | X73: 0 | Y73: 0 | AK73: 0 | AL73: 0 | AM73: 0 | AN73: 0 | AO73: 0 | AP73: 0 | AQ73: 0 | AS73: 0 | AV73: 0 | AW73: 0
A74: 71 | H74: 0 | O74: 0 | P74: 0 | S74: 0 | T74: 0 | X74: 0 | Y74: 0 | AK74: 0 | AL74: 0 | AM74: 0 | AN74: 0 | AO74: 0 | AP74: 0 | AQ74: 0 | AS74: 0 | AV74: 0 | AW74: 0
A75: 72 | H75: 0 | O75: 0 | P75: 0 | S75: 0 | T75: 0 | X75: 0 | Y75: 0 | AK75: 0 | AL75: 0 | AM75: 0 | AN75: 0 | AO75: 0 | AP75: 0 | AQ75: 0 | AS75: 0 | AV75: 0 | AW75: 0
A76: 73 | H76: 0 | O76: 0 | P76: 0 | S76: 0 | T76: 0 | X76: 0 | Y76: 0 | AK76: 0 | AL76: 0 | AM76: 0 | AN76: 0 | AO76: 0 | AP76: 0 | AQ76: 0 | AS76: 0 | AV76: 0 | AW76: 0
A77: 74 | H77: 0 | O77: 0 | P77: 0 | S77: 0 | T77: 0 | X77: 0 | Y77: 0 | AK77: 0 | AL77: 0 | AM77: 0 | AN77: 0 | AO77: 0 | AP77: 0 | AQ77: 0 | AS77: 0 | AV77: 0 | AW77: 0
A78: 75 | H78: 0 | O78: 0 | P78: 0 | S78: 0 | T78: 0 | X78: 0 | Y78: 0 | AK78: 0 | AL78: 0 | AM78: 0 | AN78: 0 | AO78: 0 | AP78: 0 | AQ78: 0 | AS78: 0 | AV78: 0 | AW78: 0
A79: 76 | H79: 0 | O79: 0 | P79: 0 | S79: 0 | T79: 0 | X79: 0 | Y79: 0 | AK79: 0 | AL79: 0 | AM79: 0 | AN79: 0 | AO79: 0 | AP79: 0 | AQ79: 0 | AS79: 0 | AV79: 0 | AW79: 0
A80: 77 | H80: 0 | O80: 0 | P80: 0 | S80: 0 | T80: 0 | X80: 0 | Y80: 0 | AK80: 0 | AL80: 0 | AM80: 0 | AN80: 0 | AO80: 0 | AP80: 0 | AQ80: 0 | AS80: 0 | AV80: 0 | AW80: 0
A81: 78 | H81: 0 | O81: 0 | P81: 0 | S81: 0 | T81: 0 | X81: 0 | Y81: 0 | AK81: 0 | AL81: 0 | AM81: 0 | AN81: 0 | AO81: 0 | AP81: 0 | AQ81: 0 | AS81: 0 | AV81: 0 | AW81: 0
A82: 79 | H82: 0 | O82: 0 | P82: 0 | S82: 0 | T82: 0 | X82: 0 | Y82: 0 | AK82: 0 | AL82: 0 | AM82: 0 | AN82: 0 | AO82: 0 | AP82: 0 | AQ82: 0 | AS82: 0 | AV82: 0 | AW82: 0
A83: 80 | H83: 0 | O83: 0 | P83: 0 | S83: 0 | T83: 0 | X83: 0 | Y83: 0 | AK83: 0 | AL83: 0 | AM83: 0 | AN83: 0 | AO83: 0 | AP83: 0 | AQ83: 0 | AS83: 0 | AV83: 0 | AW83: 0
A84: 81 | H84: 0 | O84: 0 | P84: 0 | S84: 0 | T84: 0 | X84: 0 | Y84: 0 | AK84: 0 | AL84: 0 | AM84: 0 | AN84: 0 | AO84: 0 | AP84: 0 | AQ84: 0 | AS84: 0 | AV84: 0 | AW84: 0
A85: 82 | H85: 0 | O85: 0 | P85: 0 | S85: 0 | T85: 0 | X85: 0 | Y85: 0 | AK85: 0 | AL85: 0 | AM85: 0 | AN85: 0 | AO85: 0 | AP85: 0 | AQ85: 0 | AS85: 0 | AV85: 0 | AW85: 0
A86: 83 | H86: 0 | O86: 0 | P86: 0 | S86: 0 | T86: 0 | X86: 0 | Y86: 0 | AK86: 0 | AL86: 0 | AM86: 0 | AN86: 0 | AO86: 0 | AP86: 0 | AQ86: 0 | AS86: 0 | AV86: 0 | AW86: 0
A87: 84 | H87: 0 | O87: 0 | P87: 0 | S87: 0 | T87: 0 | X87: 0 | Y87: 0 | AK87: 0 | AL87: 0 | AM87: 0 | AN87: 0 | AO87: 0 | AP87: 0 | AQ87: 0 | AS87: 0 | AV87: 0 | AW87: 0
A88: 85 | H88: 0 | O88: 0 | P88: 0 | S88: 0 | T88: 0 | X88: 0 | Y88: 0 | AK88: 0 | AL88: 0 | AM88: 0 | AN88: 0 | AO88: 0 | AP88: 0 | AQ88: 0 | AS88: 0 | AV88: 0 | AW88: 0
A89: 86 | H89: 0 | O89: 0 | P89: 0 | S89: 0 | T89: 0 | X89: 0 | Y89: 0 | AK89: 0 | AL89: 0 | AM89: 0 | AN89: 0 | AO89: 0 | AP89: 0 | AQ89: 0 | AS89: 0 | AV89: 0 | AW89: 0
A90: 87 | H90: 0 | O90: 0 | P90: 0 | S90: 0 | T90: 0 | X90: 0 | Y90: 0 | AK90: 0 | AL90: 0 | AM90: 0 | AN90: 0 | AO90: 0 | AP90: 0 | AQ90: 0 | AS90: 0 | AV90: 0 | AW90: 0
A91: 88 | H91: 0 | O91: 0 | P91: 0 | S91: 0 | T91: 0 | X91: 0 | Y91: 0 | AK91: 0 | AL91: 0 | AM91: 0 | AN91: 0 | AO91: 0 | AP91: 0 | AQ91: 0 | AS91: 0 | AV91: 0 | AW91: 0
A92: 89 | H92: 0 | O92: 0 | P92: 0 | S92: 0 | T92: 0 | X92: 0 | Y92: 0 | AK92: 0 | AL92: 0 | AM92: 0 | AN92: 0 | AO92: 0 | AP92: 0 | AQ92: 0 | AS92: 0 | AV92: 0 | AW92: 0
A93: 90 | H93: 0 | O93: 0 | P93: 0 | S93: 0 | T93: 0 | X93: 0 | Y93: 0 | AK93: 0 | AL93: 0 | AM93: 0 | AN93: 0 | AO93: 0 | AP93: 0 | AQ93: 0 | AS93: 0 | AV93: 0 | AW93: 0
A94: 91 | H94: 0 | O94: 0 | P94: 0 | S94: 0 | T94: 0 | X94: 0 | Y94: 0 | AK94: 0 | AL94: 0 | AM94: 0 | AN94: 0 | AO94: 0 | AP94: 0 | AQ94: 0 | AS94: 0 | AV94: 0 | AW94: 0
A95: 92 | H95: 0 | O95: 0 | P95: 0 | S95: 0 | T95: 0 | X95: 0 | Y95: 0 | AK95: 0 | AL95: 0 | AM95: 0 | AN95: 0 | AO95: 0 | AP95: 0 | AQ95: 0 | AS95: 0 | AV95: 0 | AW95: 0
A96: 93 | H96: 0 | O96: 0 | P96: 0 | S96: 0 | T96: 0 | X96: 0 | Y96: 0 | AK96: 0 | AL96: 0 | AM96: 0 | AN96: 0 | AO96: 0 | AP96: 0 | AQ96: 0 | AS96: 0 | AV96: 0 | AW96: 0
A97: 94 | H97: 0 | O97: 0 | P97: 0 | S97: 0 | T97: 0 | X97: 0 | Y97: 0 | AK97: 0 | AL97: 0 | AM97: 0 | AN97: 0 | AO97: 0 | AP97: 0 | AQ97: 0 | AS97: 0 | AV97: 0 | AW97: 0
A98: 95 | H98: 0 | O98: 0 | P98: 0 | S98: 0 | T98: 0 | X98: 0 | Y98: 0 | AK98: 0 | AL98: 0 | AM98: 0 | AN98: 0 | AO98: 0 | AP98: 0 | AQ98: 0 | AS98: 0 | AV98: 0 | AW98: 0
A99: 96 | H99: 0 | O99: 0 | P99: 0 | S99: 0 | T99: 0 | X99: 0 | Y99: 0 | AK99: 0 | AL99: 0 | AM99: 0 | AN99: 0 | AO99: 0 | AP99: 0 | AQ99: 0 | AS99: 0 | AV99: 0 | AW99: 0
A100: 97 | H100: 0 | O100: 0 | P100: 0 | S100: 0 | T100: 0 | X100: 0 | Y100: 0 | AK100: 0 | AL100: 0 | AM100: 0 | AN100: 0 | AO100: 0 | AP100: 0 | AQ100: 0 | AS100: 0 | AV100: 0 | AW100: 0
A101: 98 | H101: 0 | O101: 0 | P101: 0 | S101: 0 | T101: 0 | X101: 0 | Y101: 0 | AK101: 0 | AL101: 0 | AM101: 0 | AN101: 0 | AO101: 0 | AP101: 0 | AQ101: 0 | AS101: 0 | AV101: 0 | AW101: 0
A102: 99 | H102: 0 | O102: 0 | P102: 0 | S102: 0 | T102: 0 | X102: 0 | Y102: 0 | AK102: 0 | AL102: 0 | AM102: 0 | AN102: 0 | AO102: 0 | AP102: 0 | AQ102: 0 | AS102: 0 | AV102: 0 | AW102: 0
A103: 100 | H103: 0 | O103: 0 | P103: 0 | S103: 0 | T103: 0 | X103: 0 | Y103: 0 | AK103: 0 | AL103: 0 | AM103: 0 | AN103: 0 | AO103: 0 | AP103: 0 | AQ103: 0 | AS103: 0 | AV103: 0 | AW103: 0
A104: 101 | H104: 0 | O104: 0 | P104: 0 | S104: 0 | T104: 0 | X104: 0 | Y104: 0 | AK104: 0 | AL104: 0 | AM104: 0 | AN104: 0 | AO104: 0 | AP104: 0 | AQ104: 0 | AS104: 0 | AV104: 0 | AW104: 0
A105: 102 | H105: 0 | O105: 0 | P105: 0 | S105: 0 | T105: 0 | X105: 0 | Y105: 0 | AK105: 0 | AL105: 0 | AM105: 0 | AN105: 0 | AO105: 0 | AP105: 0 | AQ105: 0 | AS105: 0 | AV105: 0 | AW105: 0
A106: 103 | H106: 0 | O106: 0 | P106: 0 | S106: 0 | T106: 0 | X106: 0 | Y106: 0 | AK106: 0 | AL106: 0 | AM106: 0 | AN106: 0 | AO106: 0 | AP106: 0 | AQ106: 0 | AS106: 0 | AV106: 0 | AW106: 0
A107: 104 | H107: 0 | O107: 0 | P107: 0 | S107: 0 | T107: 0 | X107: 0 | Y107: 0 | AK107: 0 | AL107: 0 | AM107: 0 | AN107: 0 | AO107: 0 | AP107: 0 | AQ107: 0 | AS107: 0 | AV107: 0 | AW107: 0
A108: 105 | H108: 0 | O108: 0 | P108: 0 | S108: 0 | T108: 0 | X108: 0 | Y108: 0 | AK108: 0 | AL108: 0 | AM108: 0 | AN108: 0 | AO108: 0 | AP108: 0 | AQ108: 0 | AS108: 0 | AV108: 0 | AW108: 0
A109: 106 | H109: 0 | O109: 0 | P109: 0 | S109: 0 | T109: 0 | X109: 0 | Y109: 0 | AK109: 0 | AL109: 0 | AM109: 0 | AN109: 0 | AO109: 0 | AP109: 0 | AQ109: 0 | AS109: 0 | AV109: 0 | AW109: 0
A110: 107 | H110: 0 | O110: 0 | P110: 0 | S110: 0 | T110: 0 | X110: 0 | Y110: 0 | AK110: 0 | AL110: 0 | AM110: 0 | AN110: 0 | AO110: 0 | AP110: 0 | AQ110: 0 | AS110: 0 | AV110: 0 | AW110: 0
A111: 108 | H111: 0 | O111: 0 | P111: 0 | S111: 0 | T111: 0 | X111: 0 | Y111: 0 | AK111: 0 | AL111: 0 | AM111: 0 | AN111: 0 | AO111: 0 | AP111: 0 | AQ111: 0 | AS111: 0 | AV111: 0 | AW111: 0
A112: 109 | H112: 0 | O112: 0 | P112: 0 | S112: 0 | T112: 0 | X112: 0 | Y112: 0 | AK112: 0 | AL112: 0 | AM112: 0 | AN112: 0 | AO112: 0 | AP112: 0 | AQ112: 0 | AS112: 0 | AV112: 0 | AW112: 0
A113: 110 | H113: 0 | O113: 0 | P113: 0 | S113: 0 | T113: 0 | X113: 0 | Y113: 0 | AK113: 0 | AL113: 0 | AM113: 0 | AN113: 0 | AO113: 0 | AP113: 0 | AQ113: 0 | AS113: 0 | AV113: 0 | AW113: 0
A114: 111 | H114: 0 | O114: 0 | P114: 0 | S114: 0 | T114: 0 | X114: 0 | Y114: 0 | AK114: 0 | AL114: 0 | AM114: 0 | AN114: 0 | AO114: 0 | AP114: 0 | AQ114: 0 | AS114: 0 | AV114: 0 | AW114: 0
A115: 112 | H115: 0 | O115: 0 | P115: 0 | S115: 0 | T115: 0 | X115: 0 | Y115: 0 | AK115: 0 | AL115: 0 | AM115: 0 | AN115: 0 | AO115: 0 | AP115: 0 | AQ115: 0 | AS115: 0 | AV115: 0 | AW115: 0
A116: 113 | H116: 0 | O116: 0 | P116: 0 | S116: 0 | T116: 0 | X116: 0 | Y116: 0 | AK116: 0 | AL116: 0 | AM116: 0 | AN116: 0 | AO116: 0 | AP116: 0 | AQ116: 0 | AS116: 0 | AV116: 0 | AW116: 0
A117: 114 | H117: 0 | O117: 0 | P117: 0 | S117: 0 | T117: 0 | X117: 0 | Y117: 0 | AK117: 0 | AL117: 0 | AM117: 0 | AN117: 0 | AO117: 0 | AP117: 0 | AQ117: 0 | AS117: 0 | AV117: 0 | AW117: 0
A118: 115 | H118: 0 | O118: 0 | P118: 0 | S118: 0 | T118: 0 | X118: 0 | Y118: 0 | AK118: 0 | AL118: 0 | AM118: 0 | AN118: 0 | AO118: 0 | AP118: 0 | AQ118: 0 | AS118: 0 | AV118: 0 | AW118: 0
A119: 116 | H119: 0 | O119: 0 | P119: 0 | S119: 0 | T119: 0 | X119: 0 | Y119: 0 | AK119: 0 | AL119: 0 | AM119: 0 | AN119: 0 | AO119: 0 | AP119: 0 | AQ119: 0 | AS119: 0 | AV119: 0 | AW119: 0
A120: 117 | H120: 0 | O120: 0 | P120: 0 | S120: 0 | T120: 0 | X120: 0 | Y120: 0 | AK120: 0 | AL120: 0 | AM120: 0 | AN120: 0 | AO120: 0 | AP120: 0 | AQ120: 0 | AS120: 0 | AV120: 0 | AW120: 0
A121: 118 | H121: 0 | O121: 0 | P121: 0 | S121: 0 | T121: 0 | X121: 0 | Y121: 0 | AK121: 0 | AL121: 0 | AM121: 0 | AN121: 0 | AO121: 0 | AP121: 0 | AQ121: 0 | AS121: 0 | AV121: 0 | AW121: 0
A122: 119 | H122: 0 | O122: 0 | P122: 0 | S122: 0 | T122: 0 | X122: 0 | Y122: 0 | AK122: 0 | AL122: 0 | AM122: 0 | AN122: 0 | AO122: 0 | AP122: 0 | AQ122: 0 | AS122: 0 | AV122: 0 | AW122: 0
A123: 120 | H123: 0 | O123: 0 | P123: 0 | S123: 0 | T123: 0 | X123: 0 | Y123: 0 | AK123: 0 | AL123: 0 | AM123: 0 | AN123: 0 | AO123: 0 | AP123: 0 | AQ123: 0 | AS123: 0 | AV123: 0 | AW123: 0
A124: 121 | H124: 0 | O124: 0 | P124: 0 | S124: 0 | T124: 0 | X124: 0 | Y124: 0 | AK124: 0 | AL124: 0 | AM124: 0 | AN124: 0 | AO124: 0 | AP124: 0 | AQ124: 0 | AS124: 0 | AV124: 0 | AW124: 0
A125: 122 | H125: 0 | O125: 0 | P125: 0 | S125: 0 | T125: 0 | X125: 0 | Y125: 0 | AK125: 0 | AL125: 0 | AM125: 0 | AN125: 0 | AO125: 0 | AP125: 0 | AQ125: 0 | AS125: 0 | AV125: 0 | AW125: 0
A126: 123 | H126: 0 | O126: 0 | P126: 0 | S126: 0 | T126: 0 | X126: 0 | Y126: 0 | AK126: 0 | AL126: 0 | AM126: 0 | AN126: 0 | AO126: 0 | AP126: 0 | AQ126: 0 | AS126: 0 | AV126: 0 | AW126: 0
A127: 124 | H127: 0 | O127: 0 | P127: 0 | S127: 0 | T127: 0 | X127: 0 | Y127: 0 | AK127: 0 | AL127: 0 | AM127: 0 | AN127: 0 | AO127: 0 | AP127: 0 | AQ127: 0 | AS127: 0 | AV127: 0 | AW127: 0
A128: 125 | H128: 0 | O128: 0 | P128: 0 | S128: 0 | T128: 0 | X128: 0 | Y128: 0 | AK128: 0 | AL128: 0 | AM128: 0 | AN128: 0 | AO128: 0 | AP128: 0 | AQ128: 0 | AS128: 0 | AV128: 0 | AW128: 0
A129: 126 | H129: 0 | O129: 0 | P129: 0 | S129: 0 | T129: 0 | X129: 0 | Y129: 0 | AK129: 0 | AL129: 0 | AM129: 0 | AN129: 0 | AO129: 0 | AP129: 0 | AQ129: 0 | AS129: 0 | AV129: 0 | AW129: 0
A130: 127 | H130: 0 | O130: 0 | P130: 0 | S130: 0 | T130: 0 | X130: 0 | Y130: 0 | AK130: 0 | AL130: 0 | AM130: 0 | AN130: 0 | AO130: 0 | AP130: 0 | AQ130: 0 | AS130: 0 | AV130: 0 | AW130: 0
A131: 128 | H131: 0 | O131: 0 | P131: 0 | S131: 0 | T131: 0 | X131: 0 | Y131: 0 | AK131: 0 | AL131: 0 | AM131: 0 | AN131: 0 | AO131: 0 | AP131: 0 | AQ131: 0 | AS131: 0 | AV131: 0 | AW131: 0
A132: 129 | H132: 0 | O132: 0 | P132: 0 | S132: 0 | T132: 0 | X132: 0 | Y132: 0 | AK132: 0 | AL132: 0 | AM132: 0 | AN132: 0 | AO132: 0 | AP132: 0 | AQ132: 0 | AS132: 0 | AV132: 0 | AW132: 0
A133: 130 | H133: =SUM(E133:G133) -> 0 | O133: =SUM(I133:N133) -> 0 | P133: =H133-O133 -> 0 | S133: =SUM(Q133:R133) -> 0 | T133: =P133-S133 -> 0 | X133: =SUM(U133:W133) -> 0 | Y133: =T133+X133 -> 0 | AK133: =SUM(AA133:AJ133) -> 0 | AL133: =Y133-AK133 -> 0 | AM133: =IF(AL133>1000000,(125000+(AL133-1000000)*30%),IF(AL133>500000,(25000+(AL133-500000)*20%),IF(AL133>250000,((AL133-250000)*10%),0))) -> 0 | AN133: =IF(AL133<500001,(MIN(AM133,5000)),0) -> 0 | AO133: =+AM133-AN133 -> 0 | AP133: =+AO133*3% -> 0 | AQ133: =+AO133+AP133 -> 0 | AS133: =AQ133-AR133 -> 0 | AV133: =SUM(AT133:AU133) -> 0 | AW133: =AS133-AV133 -> 0
A134: 131 | H134: 0 | O134: 0 | P134: 0 | S134: 0 | T134: 0 | X134: 0 | Y134: 0 | AK134: 0 | AL134: 0 | AM134: 0 | AN134: 0 | AO134: 0 | AP134: 0 | AQ134: 0 | AS134: 0 | AV134: 0 | AW134: 0
A135: 132 | H135: 0 | O135: 0 | P135: 0 | S135: 0 | T135: 0 | X135: 0 | Y135: 0 | AK135: 0 | AL135: 0 | AM135: 0 | AN135: 0 | AO135: 0 | AP135: 0 | AQ135: 0 | AS135: 0 | AV135: 0 | AW135: 0
A136: 133 | H136: 0 | O136: 0 | P136: 0 | S136: 0 | T136: 0 | X136: 0 | Y136: 0 | AK136: 0 | AL136: 0 | AM136: 0 | AN136: 0 | AO136: 0 | AP136: 0 | AQ136: 0 | AS136: 0 | AV136: 0 | AW136: 0
A137: 134 | H137: 0 | O137: 0 | P137: 0 | S137: 0 | T137: 0 | X137: 0 | Y137: 0 | AK137: 0 | AL137: 0 | AM137: 0 | AN137: 0 | AO137: 0 | AP137: 0 | AQ137: 0 | AS137: 0 | AV137: 0 | AW137: 0
A138: 135 | H138: 0 | O138: 0 | P138: 0 | S138: 0 | T138: 0 | X138: 0 | Y138: 0 | AK138: 0 | AL138: 0 | AM138: 0 | AN138: 0 | AO138: 0 | AP138: 0 | AQ138: 0 | AS138: 0 | AV138: 0 | AW138: 0
A139: 136 | H139: 0 | O139: 0 | P139: 0 | S139: 0 | T139: 0 | X139: 0 | Y139: 0 | AK139: 0 | AL139: 0 | AM139: 0 | AN139: 0 | AO139: 0 | AP139: 0 | AQ139: 0 | AS139: 0 | AV139: 0 | AW139: 0
A140: 137 | H140: 0 | O140: 0 | P140: 0 | S140: 0 | T140: 0 | X140: 0 | Y140: 0 | AK140: 0 | AL140: 0 | AM140: 0 | AN140: 0 | AO140: 0 | AP140: 0 | AQ140: 0 | AS140: 0 | AV140: 0 | AW140: 0
A141: 138 | H141: 0 | O141: 0 | P141: 0 | S141: 0 | T141: 0 | X141: 0 | Y141: 0 | AK141: 0 | AL141: 0 | AM141: 0 | AN141: 0 | AO141: 0 | AP141: 0 | AQ141: 0 | AS141: 0 | AV141: 0 | AW141: 0
A142: 139 | H142: 0 | O142: 0 | P142: 0 | S142: 0 | T142: 0 | X142: 0 | Y142: 0 | AK142: 0 | AL142: 0 | AM142: 0 | AN142: 0 | AO142: 0 | AP142: 0 | AQ142: 0 | AS142: 0 | AV142: 0 | AW142: 0
A143: 140 | H143: 0 | O143: 0 | P143: 0 | S143: 0 | T143: 0 | X143: 0 | Y143: 0 | AK143: 0 | AL143: 0 | AM143: 0 | AN143: 0 | AO143: 0 | AP143: 0 | AQ143: 0 | AS143: 0 | AV143: 0 | AW143: 0
A144: 141 | H144: 0 | O144: 0 | P144: 0 | S144: 0 | T144: 0 | X144: 0 | Y144: 0 | AK144: 0 | AL144: 0 | AM144: 0 | AN144: 0 | AO144: 0 | AP144: 0 | AQ144: 0 | AS144: 0 | AV144: 0 | AW144: 0
A145: 142 | H145: 0 | O145: 0 | P145: 0 | S145: 0 | T145: 0 | X145: 0 | Y145: 0 | AK145: 0 | AL145: 0 | AM145: 0 | AN145: 0 | AO145: 0 | AP145: 0 | AQ145: 0 | AS145: 0 | AV145: 0 | AW145: 0
A146: 143 | H146: 0 | O146: 0 | P146: 0 | S146: 0 | T146: 0 | X146: 0 | Y146: 0 | AK146: 0 | AL146: 0 | AM146: 0 | AN146: 0 | AO146: 0 | AP146: 0 | AQ146: 0 | AS146: 0 | AV146: 0 | AW146: 0
A147: 144 | H147: 0 | O147: 0 | P147: 0 | S147: 0 | T147: 0 | X147: 0 | Y147: 0 | AK147: 0 | AL147: 0 | AM147: 0 | AN147: 0 | AO147: 0 | AP147: 0 | AQ147: 0 | AS147: 0 | AV147: 0 | AW147: 0
A148: 145 | H148: 0 | O148: 0 | P148: 0 | S148: 0 | T148: 0 | X148: 0 | Y148: 0 | AK148: 0 | AL148: 0 | AM148: 0 | AN148: 0 | AO148: 0 | AP148: 0 | AQ148: 0 | AS148: 0 | AV148: 0 | AW148: 0
A149: 146 | H149: 0 | O149: 0 | P149: 0 | S149: 0 | T149: 0 | X149: 0 | Y149: 0 | AK149: 0 | AL149: 0 | AM149: 0 | AN149: 0 | AO149: 0 | AP149: 0 | AQ149: 0 | AS149: 0 | AV149: 0 | AW149: 0
A150: 147 | H150: 0 | O150: 0 | P150: 0 | S150: 0 | T150: 0 | X150: 0 | Y150: 0 | AK150: 0 | AL150: 0 | AM150: 0 | AN150: 0 | AO150: 0 | AP150: 0 | AQ150: 0 | AS150: 0 | AV150: 0 | AW150: 0
A151: 148 | H151: 0 | O151: 0 | P151: 0 | S151: 0 | T151: 0 | X151: 0 | Y151: 0 | AK151: 0 | AL151: 0 | AM151: 0 | AN151: 0 | AO151: 0 | AP151: 0 | AQ151: 0 | AS151: 0 | AV151: 0 | AW151: 0
A152: 149 | H152: 0 | O152: 0 | P152: 0 | S152: 0 | T152: 0 | X152: 0 | Y152: 0 | AK152: 0 | AL152: 0 | AM152: 0 | AN152: 0 | AO152: 0 | AP152: 0 | AQ152: 0 | AS152: 0 | AV152: 0 | AW152: 0
A153: 150 | H153: 0 | O153: 0 | P153: 0 | S153: 0 | T153: 0 | X153: 0 | Y153: 0 | AK153: 0 | AL153: 0 | AM153: 0 | AN153: 0 | AO153: 0 | AP153: 0 | AQ153: 0 | AS153: 0 | AV153: 0 | AW153: 0
A154: 151 | H154: 0 | O154: 0 | P154: 0 | S154: 0 | T154: 0 | X154: 0 | Y154: 0 | AK154: 0 | AL154: 0 | AM154: 0 | AN154: 0 | AO154: 0 | AP154: 0 | AQ154: 0 | AS154: 0 | AV154: 0 | AW154: 0
A155: 152 | H155: 0 | O155: 0 | P155: 0 | S155: 0 | T155: 0 | X155: 0 | Y155: 0 | AK155: 0 | AL155: 0 | AM155: 0 | AN155: 0 | AO155: 0 | AP155: 0 | AQ155: 0 | AS155: 0 | AV155: 0 | AW155: 0
A156: 153 | H156: 0 | O156: 0 | P156: 0 | S156: 0 | T156: 0 | X156: 0 | Y156: 0 | AK156: 0 | AL156: 0 | AM156: 0 | AN156: 0 | AO156: 0 | AP156: 0 | AQ156: 0 | AS156: 0 | AV156: 0 | AW156: 0
A157: 154 | H157: 0 | O157: 0 | P157: 0 | S157: 0 | T157: 0 | X157: 0 | Y157: 0 | AK157: 0 | AL157: 0 | AM157: 0 | AN157: 0 | AO157: 0 | AP157: 0 | AQ157: 0 | AS157: 0 | AV157: 0 | AW157: 0
A158: 155 | H158: 0 | O158: 0 | P158: 0 | S158: 0 | T158: 0 | X158: 0 | Y158: 0 | AK158: 0 | AL158: 0 | AM158: 0 | AN158: 0 | AO158: 0 | AP158: 0 | AQ158: 0 | AS158: 0 | AV158: 0 | AW158: 0
A159: 156 | H159: 0 | O159: 0 | P159: 0 | S159: 0 | T159: 0 | X159: 0 | Y159: 0 | AK159: 0 | AL159: 0 | AM159: 0 | AN159: 0 | AO159: 0 | AP159: 0 | AQ159: 0 | AS159: 0 | AV159: 0 | AW159: 0
A160: 157 | H160: 0 | O160: 0 | P160: 0 | S160: 0 | T160: 0 | X160: 0 | Y160: 0 | AK160: 0 | AL160: 0 | AM160: 0 | AN160: 0 | AO160: 0 | AP160: 0 | AQ160: 0 | AS160: 0 | AV160: 0 | AW160: 0
A161: 158 | H161: 0 | O161: 0 | P161: 0 | S161: 0 | T161: 0 | X161: 0 | Y161: 0 | AK161: 0 | AL161: 0 | AM161: 0 | AN161: 0 | AO161: 0 | AP161: 0 | AQ161: 0 | AS161: 0 | AV161: 0 | AW161: 0
A162: 159 | H162: 0 | O162: 0 | P162: 0 | S162: 0 | T162: 0 | X162: 0 | Y162: 0 | AK162: 0 | AL162: 0 | AM162: 0 | AN162: 0 | AO162: 0 | AP162: 0 | AQ162: 0 | AS162: 0 | AV162: 0 | AW162: 0
A163: 160 | H163: 0 | O163: 0 | P163: 0 | S163: 0 | T163: 0 | X163: 0 | Y163: 0 | AK163: 0 | AL163: 0 | AM163: 0 | AN163: 0 | AO163: 0 | AP163: 0 | AQ163: 0 | AS163: 0 | AV163: 0 | AW163: 0
A164: 161 | H164: 0 | O164: 0 | P164: 0 | S164: 0 | T164: 0 | X164: 0 | Y164: 0 | AK164: 0 | AL164: 0 | AM164: 0 | AN164: 0 | AO164: 0 | AP164: 0 | AQ164: 0 | AS164: 0 | AV164: 0 | AW164: 0
A165: 162 | H165: 0 | O165: 0 | P165: 0 | S165: 0 | T165: 0 | X165: 0 | Y165: 0 | AK165: 0 | AL165: 0 | AM165: 0 | AN165: 0 | AO165: 0 | AP165: 0 | AQ165: 0 | AS165: 0 | AV165: 0 | AW165: 0
A166: 163 | H166: 0 | O166: 0 | P166: 0 | S166: 0 | T166: 0 | X166: 0 | Y166: 0 | AK166: 0 | AL166: 0 | AM166: 0 | AN166: 0 | AO166: 0 | AP166: 0 | AQ166: 0 | AS166: 0 | AV166: 0 | AW166: 0
A167: 164 | H167: 0 | O167: 0 | P167: 0 | S167: 0 | T167: 0 | X167: 0 | Y167: 0 | AK167: 0 | AL167: 0 | AM167: 0 | AN167: 0 | AO167: 0 | AP167: 0 | AQ167: 0 | AS167: 0 | AV167: 0 | AW167: 0
A168: 165 | H168: 0 | O168: 0 | P168: 0 | S168: 0 | T168: 0 | X168: 0 | Y168: 0 | AK168: 0 | AL168: 0 | AM168: 0 | AN168: 0 | AO168: 0 | AP168: 0 | AQ168: 0 | AS168: 0 | AV168: 0 | AW168: 0
A169: 166 | H169: 0 | O169: 0 | P169: 0 | S169: 0 | T169: 0 | X169: 0 | Y169: 0 | AK169: 0 | AL169: 0 | AM169: 0 | AN169: 0 | AO169: 0 | AP169: 0 | AQ169: 0 | AS169: 0 | AV169: 0 | AW169: 0
A170: 167 | H170: 0 | O170: 0 | P170: 0 | S170: 0 | T170: 0 | X170: 0 | Y170: 0 | AK170: 0 | AL170: 0 | AM170: 0 | AN170: 0 | AO170: 0 | AP170: 0 | AQ170: 0 | AS170: 0 | AV170: 0 | AW170: 0
A171: 168 | H171: 0 | O171: 0 | P171: 0 | S171: 0 | T171: 0 | X171: 0 | Y171: 0 | AK171: 0 | AL171: 0 | AM171: 0 | AN171: 0 | AO171: 0 | AP171: 0 | AQ171: 0 | AS171: 0 | AV171: 0 | AW171: 0
A172: 169 | H172: 0 | O172: 0 | P172: 0 | S172: 0 | T172: 0 | X172: 0 | Y172: 0 | AK172: 0 | AL172: 0 | AM172: 0 | AN172: 0 | AO172: 0 | AP172: 0 | AQ172: 0 | AS172: 0 | AV172: 0 | AW172: 0
A173: 170 | H173: 0 | O173: 0 | P173: 0 | S173: 0 | T173: 0 | X173: 0 | Y173: 0 | AK173: 0 | AL173: 0 | AM173: 0 | AN173: 0 | AO173: 0 | AP173: 0 | AQ173: 0 | AS173: 0 | AV173: 0 | AW173: 0
A174: 171 | H174: 0 | O174: 0 | P174: 0 | S174: 0 | T174: 0 | X174: 0 | Y174: 0 | AK174: 0 | AL174: 0 | AM174: 0 | AN174: 0 | AO174: 0 | AP174: 0 | AQ174: 0 | AS174: 0 | AV174: 0 | AW174: 0
A175: 172 | H175: 0 | O175: 0 | P175: 0 | S175: 0 | T175: 0 | X175: 0 | Y175: 0 | AK175: 0 | AL175: 0 | AM175: 0 | AN175: 0 | AO175: 0 | AP175: 0 | AQ175: 0 | AS175: 0 | AV175: 0 | AW175: 0
A176: 173 | H176: 0 | O176: 0 | P176: 0 | S176: 0 | T176: 0 | X176: 0 | Y176: 0 | AK176: 0 | AL176: 0 | AM176: 0 | AN176: 0 | AO176: 0 | AP176: 0 | AQ176: 0 | AS176: 0 | AV176: 0 | AW176: 0
A177: 174 | H177: 0 | O177: 0 | P177: 0 | S177: 0 | T177: 0 | X177: 0 | Y177: 0 | AK177: 0 | AL177: 0 | AM177: 0 | AN177: 0 | AO177: 0 | AP177: 0 | AQ177: 0 | AS177: 0 | AV177: 0 | AW177: 0
A178: 175 | H178: 0 | O178: 0 | P178: 0 | S178: 0 | T178: 0 | X178: 0 | Y178: 0 | AK178: 0 | AL178: 0 | AM178: 0 | AN178: 0 | AO178: 0 | AP178: 0 | AQ178: 0 | AS178: 0 | AV178: 0 | AW178: 0
A179: 176 | H179: 0 | O179: 0 | P179: 0 | S179: 0 | T179: 0 | X179: 0 | Y179: 0 | AK179: 0 | AL179: 0 | AM179: 0 | AN179: 0 | AO179: 0 | AP179: 0 | AQ179: 0 | AS179: 0 | AV179: 0 | AW179: 0
A180: 177 | H180: 0 | O180: 0 | P180: 0 | S180: 0 | T180: 0 | X180: 0 | Y180: 0 | AK180: 0 | AL180: 0 | AM180: 0 | AN180: 0 | AO180: 0 | AP180: 0 | AQ180: 0 | AS180: 0 | AV180: 0 | AW180: 0
A181: 178 | H181: 0 | O181: 0 | P181: 0 | S181: 0 | T181: 0 | X181: 0 | Y181: 0 | AK181: 0 | AL181: 0 | AM181: 0 | AN181: 0 | AO181: 0 | AP181: 0 | AQ181: 0 | AS181: 0 | AV181: 0 | AW181: 0
A182: 179 | H182: 0 | O182: 0 | P182: 0 | S182: 0 | T182: 0 | X182: 0 | Y182: 0 | AK182: 0 | AL182: 0 | AM182: 0 | AN182: 0 | AO182: 0 | AP182: 0 | AQ182: 0 | AS182: 0 | AV182: 0 | AW182: 0
A183: 180 | H183: 0 | O183: 0 | P183: 0 | S183: 0 | T183: 0 | X183: 0 | Y183: 0 | AK183: 0 | AL183: 0 | AM183: 0 | AN183: 0 | AO183: 0 | AP183: 0 | AQ183: 0 | AS183: 0 | AV183: 0 | AW183: 0
A184: 181 | H184: 0 | O184: 0 | P184: 0 | S184: 0 | T184: 0 | X184: 0 | Y184: 0 | AK184: 0 | AL184: 0 | AM184: 0 | AN184: 0 | AO184: 0 | AP184: 0 | AQ184: 0 | AS184: 0 | AV184: 0 | AW184: 0
A185: 182 | H185: 0 | O185: 0 | P185: 0 | S185: 0 | T185: 0 | X185: 0 | Y185: 0 | AK185: 0 | AL185: 0 | AM185: 0 | AN185: 0 | AO185: 0 | AP185: 0 | AQ185: 0 | AS185: 0 | AV185: 0 | AW185: 0
A186: 183 | H186: 0 | O186: 0 | P186: 0 | S186: 0 | T186: 0 | X186: 0 | Y186: 0 | AK186: 0 | AL186: 0 | AM186: 0 | AN186: 0 | AO186: 0 | AP186: 0 | AQ186: 0 | AS186: 0 | AV186: 0 | AW186: 0
A187: 184 | H187: 0 | O187: 0 | P187: 0 | S187: 0 | T187: 0 | X187: 0 | Y187: 0 | AK187: 0 | AL187: 0 | AM187: 0 | AN187: 0 | AO187: 0 | AP187: 0 | AQ187: 0 | AS187: 0 | AV187: 0 | AW187: 0
A188: 185 | H188: 0 | O188: 0 | P188: 0 | S188: 0 | T188: 0 | X188: 0 | Y188: 0 | AK188: 0 | AL188: 0 | AM188: 0 | AN188: 0 | AO188: 0 | AP188: 0 | AQ188: 0 | AS188: 0 | AV188: 0 | AW188: 0
A189: 186 | H189: 0 | O189: 0 | P189: 0 | S189: 0 | T189: 0 | X189: 0 | Y189: 0 | AK189: 0 | AL189: 0 | AM189: 0 | AN189: 0 | AO189: 0 | AP189: 0 | AQ189: 0 | AS189: 0 | AV189: 0 | AW189: 0
A190: 187 | H190: 0 | O190: 0 | P190: 0 | S190: 0 | T190: 0 | X190: 0 | Y190: 0 | AK190: 0 | AL190: 0 | AM190: 0 | AN190: 0 | AO190: 0 | AP190: 0 | AQ190: 0 | AS190: 0 | AV190: 0 | AW190: 0
A191: 188 | H191: 0 | O191: 0 | P191: 0 | S191: 0 | T191: 0 | X191: 0 | Y191: 0 | AK191: 0 | AL191: 0 | AM191: 0 | AN191: 0 | AO191: 0 | AP191: 0 | AQ191: 0 | AS191: 0 | AV191: 0 | AW191: 0
A192: 189 | H192: 0 | O192: 0 | P192: 0 | S192: 0 | T192: 0 | X192: 0 | Y192: 0 | AK192: 0 | AL192: 0 | AM192: 0 | AN192: 0 | AO192: 0 | AP192: 0 | AQ192: 0 | AS192: 0 | AV192: 0 | AW192: 0
A193: 190 | H193: 0 | O193: 0 | P193: 0 | S193: 0 | T193: 0 | X193: 0 | Y193: 0 | AK193: 0 | AL193: 0 | AM193: 0 | AN193: 0 | AO193: 0 | AP193: 0 | AQ193: 0 | AS193: 0 | AV193: 0 | AW193: 0
A194: 191 | H194: 0 | O194: 0 | P194: 0 | S194: 0 | T194: 0 | X194: 0 | Y194: 0 | AK194: 0 | AL194: 0 | AM194: 0 | AN194: 0 | AO194: 0 | AP194: 0 | AQ194: 0 | AS194: 0 | AV194: 0 | AW194: 0
A195: 192 | H195: 0 | O195: 0 | P195: 0 | S195: 0 | T195: 0 | X195: 0 | Y195: 0 | AK195: 0 | AL195: 0 | AM195: 0 | AN195: 0 | AO195: 0 | AP195: 0 | AQ195: 0 | AS195: 0 | AV195: 0 | AW195: 0
A196: 193 | H196: 0 | O196: 0 | P196: 0 | S196: 0 | T196: 0 | X196: 0 | Y196: 0 | AK196: 0 | AL196: 0 | AM196: 0 | AN196: 0 | AO196: 0 | AP196: 0 | AQ196: 0 | AS196: 0 | AV196: 0 | AW196: 0
A197: 194 | H197: =SUM(E197:G197) -> 0 | O197: =SUM(I197:N197) -> 0 | P197: =H197-O197 -> 0 | S197: =SUM(Q197:R197) -> 0 | T197: =P197-S197 -> 0 | X197: =SUM(U197:W197) -> 0 | Y197: =T197+X197 -> 0 | AK197: =SUM(AA197:AJ197) -> 0 | AL197: =Y197-AK197 -> 0 | AM197: =IF(AL197>1000000,(125000+(AL197-1000000)*30%),IF(AL197>500000,(25000+(AL197-500000)*20%),IF(AL197>250000,((AL197-250000)*10%),0))) -> 0 | AN197: =IF(AL197<500001,(MIN(AM197,5000)),0) -> 0 | AO197: =+AM197-AN197 -> 0 | AP197: =+AO197*3% -> 0 | AQ197: =+AO197+AP197 -> 0 | AS197: =AQ197-AR197 -> 0 | AV197: =SUM(AT197:AU197) -> 0 | AW197: =AS197-AV197 -> 0
A198: 195 | H198: 0 | O198: 0 | P198: 0 | S198: 0 | T198: 0 | X198: 0 | Y198: 0 | AK198: 0 | AL198: 0 | AM198: 0 | AN198: 0 | AO198: 0 | AP198: 0 | AQ198: 0 | AS198: 0 | AV198: 0 | AW198: 0
A199: 196 | H199: 0 | O199: 0 | P199: 0 | S199: 0 | T199: 0 | X199: 0 | Y199: 0 | AK199: 0 | AL199: 0 | AM199: 0 | AN199: 0 | AO199: 0 | AP199: 0 | AQ199: 0 | AS199: 0 | AV199: 0 | AW199: 0
A200: 197 | H200: 0 | O200: 0 | P200: 0 | S200: 0 | T200: 0 | X200: 0 | Y200: 0 | AK200: 0 | AL200: 0 | AM200: 0 | AN200: 0 | AO200: 0 | AP200: 0 | AQ200: 0 | AS200: 0 | AV200: 0 | AW200: 0
... 303 more rows

Sheet Form 16 part B
B2: Select Sl No. | C2: 1
B3: From: | C3: 1
B4: To: | C4: 2
B6: =VLOOKUP($C$2,'Data Sheet for Part B'!$A:$AW,3,0) -> Mr. A | C6: =VLOOKUP($C$2,'Data Sheet for Part B'!$A:$AW,2,0) -> 2225 | D6: =VLOOKUP($C$2,'Data Sheet for Part B'!$A:$AW,4,0) -> asdafq5345 | F6: ="AY "&'Company Master'!C14 -> AY 2017-18
B7: PART B (Annexure)
B8: Details of Salary Paid and any other income and tax deducted
D9: Rs. | E9: Rs. | F9: Rs.
B10: 1. Gross Salary
B11: (a) Salary as per provisions contained in sec. 17(1) | D11: =VLOOKUP($C$2,'Data Sheet for Part B'!$A:$AW,H11,0) -> 1233440 | H11: 5
B12: (b) Value of perquisites u/s 17(2) | D12: =VLOOKUP($C$2,'Data Sheet for Part B'!$A:$AW,H12,0) -> 1212 | H12: 6
B13: (c) Profits in lieu of salary under section 17(3) | D13: =VLOOKUP($C$2,'Data Sheet for Part B'!$A:$AW,H13,0) -> 111 | H13: 7
B14: (d) Total | E14: =SUM(D11:D13) -> 1234763
B16: 2. Less: Allowance to the extent exempt U/s 10
B17: a) Conveyance Allowance | D17: =VLOOKUP($C$2,'Data Sheet for Part B'!$A:$AW,H17,0) -> 11 | H17: 9
B18: b) HRA Exemption | D18: =VLOOKUP($C$2,'Data Sheet for Part B'!$A:$AW,H18,0) -> 22 | H18: 10
B19: c) Children Education | D19: =VLOOKUP($C$2,'Data Sheet for Part B'!$A:$AW,H19,0) -> 33 | H19: 11
B20: d) Children Hostel | D20: =VLOOKUP($C$2,'Data Sheet for Part B'!$A:$AW,H20,0) -> 44 | H20: 12
B21: e) Medical Reimbursement | D21: =VLOOKUP($C$2,'Data Sheet for Part B'!$A:$AW,H21,0) -> 55 | H21: 13
B22: f) Leave travel allowance | D22: =VLOOKUP($C$2,'Data Sheet for Part B'!$A:$AW,H22,0) -> 66 | H22: 14
B23: g) Total | E23: =SUM(D17:D22) -> 231
B24: 3. Balance (1-2) | E24: =+E14-E23 -> 1234532
B25: 4. Deductions :
B26: (a) Entertainment allowance | D26: =VLOOKUP($C$2,'Data Sheet for Part B'!$A:$AW,H26,0) -> 20 | H26: 17
B27: (b) Tax on employment | D27: =VLOOKUP($C$2,'Data Sheet for Part B'!$A:$AW,H27,0) -> 30 | H27: 18
B28: 5. Aggregate of 4(a) and (b) | E28: =SUM(D26:D27) -> 50
B29: 6. Income chargebale under the head 'Salaries' (3-5) | F29: =+E24-E28 -> 1234482
B30: 7. Add: Any other income reported by the employee
B31: a) Income from Previous Employeement | D31: =VLOOKUP($C$2,'Data Sheet for Part B'!$A:$AW,H31,0) -> 1111 | H31: 21
B32: b) Income from House Property | D32: =VLOOKUP($C$2,'Data Sheet for Part B'!$A:$AW,H32,0) -> 22221 | H32: 22
B33: c) Income from Other Sources | D33: =VLOOKUP($C$2,'Data Sheet for Part B'!$A:$AW,H33,0) -> 31313 | H33: 23
B34: d)Total | E34: =SUM(D31:D33) -> 54645
B35: 8. Gross Total income (6+7) | F35: =+F29+E34 -> 1289127
B36: 9. Deductions under Chapter VI A
E37: Gross Amount | F37: Deductible Amount
B38: (A) sections 80C, 80CCC and 80CCD
B39: i) PF Contribution (80C) | E39: =VLOOKUP($C$2,'Data Sheet for Part B'!$A:$AW,H39,0) -> 1 | H39: 27
B40: ii) Other Deductions under 80C, 80CCC& 80CCD | E40: =VLOOKUP($C$2,'Data Sheet for Part B'!$A:$AW,H40,0) -> 2 | F40: =SUM(E39:E40) -> 3 | H40: 28
B41: (B) other sections under Chapter VI-A
B42: 80CCD (1b) (Contribution to NPS) | E42: =VLOOKUP($C$2,'Data Sheet for Part B'!$A:$AW,H42,0) -> 3 | F42: =+E42 -> 3 | H42: 29
B43: 80CCG (RGESS) | E43: =VLOOKUP($C$2,'Data Sheet for Part B'!$A:$AW,H43,0) -> 4 | F43: 4 | H43: 30
B44: 80D (Medical Insurance) | E44: =VLOOKUP($C$2,'Data Sheet for Part B'!$A:$AW,H44,0) -> 5 | F44: 5 | H44: 31
B45: 80DD (Rehabilitation of Handicapped Dependent) | E45: =VLOOKUP($C$2,'Data Sheet for Part B'!$A:$AW,H45,0) -> 6 | F45: 6 | H45: 32
B46: 80DDB (Medical Expenditure on Self or Dependent) | E46: =VLOOKUP($C$2,'Data Sheet for Part B'!$A:$AW,H46,0) -> 7 | F46: 7 | H46: 33
B47: 80E (Interest on Loan for Higher Studies) | E47: =VLOOKUP($C$2,'Data Sheet for Part B'!$A:$AW,H47,0) -> 8 | F47: 8 | H47: 34
B48: 80TTA (Interest on Savings account) | E48: =VLOOKUP($C$2,'Data Sheet for Part B'!$A:$AW,H48,0) -> 9 | F48: =+E48 -> 9 | H48: 35
B49: 80U (Physical Disability) | E49: =VLOOKUP($C$2,'Data Sheet for Part B'!$A:$AW,H49,0) -> 10 | F49: 10 | H49: 36
B50: 10. Aggregate of deductible amount under Chapter VI A | F50: =SUM(F40:F49) -> 55
B51: 11. Total Income (8-10) | F51: =MAX((F35-F50),0) -> 1289072
B52: 12. Tax on total income | F52: =VLOOKUP($C$2,'Data Sheet for Part B'!$A:$AW,H52,0) -> 211721.6 | H52: 39
B53: 13. Rebate U/S 87A | F53: =VLOOKUP($C$2,'Data Sheet for Part B'!$A:$AW,H53,0) -> 0 | H53: 40
B54: 14. Tax Payable after rebate | F54: =VLOOKUP($C$2,'Data Sheet for Part B'!$A:$AW,H54,0) -> 211721.6 | H54: 41
B55: 15. Education cess @ 3% | F55: =VLOOKUP($C$2,'Data Sheet for Part B'!$A:$AW,H55,0) -> 6351.648 | H55: 42
B56: 16. Tax Payable | F56: =VLOOKUP($C$2,'Data Sheet for Part B'!$A:$AW,H56,0) -> 218073.248 | H56: 43
B57: 17. Less: Relief under section 89 (attach details) | F57: =VLOOKUP($C$2,'Data Sheet for Part B'!$A:$AW,H57,0) -> 0 | H57: 44
B58: 18. Tax Payable (15-16) | F58: =VLOOKUP($C$2,'Data Sheet for Part B'!$A:$AW,H58,0) -> 218073.248 | H58: 45
B59: Verification
B60: =CONCATENATE("I, "&'Company Master'!C17& " son of "&'Company Master'!C18&" working in the capacity of "&'Company Master'!C19&" do hereby certify that the information given above is true, complete and correct and is based on the books of account, documents,TDS statements, and other available records.") -> I, My Name son of Father Name working in the capacity of Director do hereby certify that the information given above is true, complete and correct and is based on the books of account, documents,TDS statements, and other available records.
B63: Place: | C63: ='Company Master'!C20 -> Bangalore
B64: Date: | C64: ='Company Master'!C21 -> 2017-05-30
D65: Signature of person responsible for deduction of tax
B66: ="Designation: "&'Company Master'!C19 -> Designation: Director | D66: ="Full Name: "&'Company Master'!C17 -> Full Name: My Name
B68: Tax Deducted Summary
G84: Sl No. | H84: Particulars | O84: Amount in Rs.
G85: 1 | H85: Tax Payable as per Part -B | O85: =F58 -> 218073.248
G86: 2 | H86: Tax deducted at current employeement | O86: =VLOOKUP($C$2,'Data Sheet for Part B'!$A:$AW,R86,0) -> 0 | R86: 46
G87: 3 | H87: Tax deducted by others | O87: =VLOOKUP($C$2,'Data Sheet for Part B'!$A:$AW,R87,0) -> 0 | R87: 47
G88: 4 | H88: Total tax deducted | O88: =O86+O87 -> 0
G89: 5 | H89: Net tax payable /(Refundable) | O89: =O85-O88 -> 218073.248

Sheet Form 12BA
B2: Select Sl. No. | F2: 1
A6: Original | E6: 24
A9: FORM No. 12 BA
A10: [See rule 26A(2) (b)]
A11: Statement showing particulars of perquisites, other fringe benefits or
A12: amenities and profits in lieu of salary with value thereof
A14: 1 | B14: Name and address of employer: | L14: ='Company Master'!C7 -> Excelhub.org
L15: ='Company Master'!C8 -> No. 1, New address
L16: ='Company Master'!C9 -> New road,
L17: ='Company Master'!C10 -> New town- 560001
A19: 2 | B19: TAN: | L19: ='Company Master'!C12 -> BBBBB1234G
A20: 3 | B20: TDS Assessment Range of the employer: | L20: ='Company Master'!C11 -> BLR, 17 D
A21: 4 | B21: Name, designation and PAN of employee: | L21: =VLOOKUP($F$2,'Data Sheet for Part B'!$A:$O,3,0)&" - "&VLOOKUP($F$2,'Data Sheet for Part B'!$A:$O,4,0) -> Mr. A - asdafq5345 | Z21: ,
A22: 5 | B22: Is the employee a director or a person with
B23: substantial interest in the Company | L23: No
A24: 6 | B24: Income under the head “Salaries” of the
B25: employee ( other than from perquisites): | L25: =VLOOKUP($F$2,'Data Sheet for Part B'!$A:$O,5,0) -> 1233440
A26: 7 | B26: Financial Year: | L26: ='Company Master'!C13 -> 2016-17
A27: 8 | B27: Valuation of Perquisites:
A28: Sl. No. | C28: Nature of perquisite | N28: Value of perquisite as per rules | R28: Amount, if any recovered from the employee | V28: Amount perquisite chargeable to tax Col.(3) – Col.(4)
C29: (See rule 3)
N31: Rs. | R31: Rs. | V31: Rs.
A32: 1 | C32: Accommodation | V32: =N32-R32 -> 0
A33: 2 | C33: Cars/Other automotive | V33: =N33-R33 -> 0
A34: 3 | C34: Sweeper, gardener, watchman or personal attendant | V34: 0
A35: 4 | C35: Gas, electricity, water | V35: 0
A36: 5 | C36: Interest free or concessional loans | V36: 0
A37: 6 | C37: Holiday expenses | V37: 0
A38: 7 | C38: Free or concessional travel | V38: 0
A39: 8 | C39: Free meals | V39: 0
A40: 9 | C40: Free education | V40: 0
A41: 10 | C41: Gifts, vouchers, etc. | V41: 0
A42: 11 | C42: Credit card expenses | V42: 0
A43: 12 | C43: Club expenses | V43: 0
A44: 13 | C44: Use of movable assets by employees | V44: 0
A45: 14 | C45: Transfer of assets to employees | V45: 0
A46: 15 | C46: Value of any other benefit / amenity / service / privilege | V46: 0
A47: 16 | C47: Stock options ( non-qualified options) | V47: 0
A48: 17 | C48: Other benefits or amenities | V48: 0
A49: 18 | C49: Total value of perquisites | V49: 0
A50: 19 | C50: Total value of Profits in lieu of salary as per section 17(3)
A52: 9 | C52: Details of tax,-
A53: (a) | C53: Tax deducted from salary of the employee under section 192 (1) | V53: =VLOOKUP($F$2,'Data Sheet for Part B'!$A:$AW,46,0) -> 0
A54: (b) | C54: Tax paid by employer on behalf of the employee under section 192(1A) | V54: 0
A55: (c) | C55: Total tax paid | V55: =+V53 -> 0
A56: (d) | C56: Date of payment into Government treasury
A58: Declaration by Employer
A60: =CONCATENATE("I, "&'Company Master'!C17&", son of "&'Company Master'!C18&" working in the Capacity of "&'Company Master'!C19&" do hereby declare on behalf of "&'Company Master'!C7&" that the information given above is based on the books of account, documents and other relevant records,"&" or information available with us and the details of value of each such perquisite are in accordance with section 17 and rules framed there under and that such information is true and correct.") -> I, My Name, son of Father Name working in the Capacity of Director do hereby declare on behalf of Excelhub.org that the information given above is based on the books of account, documents and other relevant records, or information available with us and the details of value of each such perquisite are in accordance with section 17 and rules framed there under and that such information is true and correct.
A65: Place: | D65: ='Company Master'!C20 -> Bangalore
A68: Date: | D68: ='Company Master'!C21 -> 2017-05-30 | K68: Signature of person responsible for deduction of tax
A70: Designation: | D70: ='Company Master'!C19 -> Director | K70: Full Name: | N70: ='Company Master'!C17 -> My Name
